Workbook

Sheet DSM Balance
D1: 2023 | E1: 2023 | F1: 2023 | G1: 2023 | H1: 2023 | I1: 2023 | J1: 2023 | K1: 2023 | L1: 2024 | M1: 2024 | N1: 2024 | O1: 2024 | P1: 2024 | Q1: 2024 | R1: 2024
C2: End April | D2: End May | E2: End June | F2: End July | G2: End August | H2: End September | I2: End October | J2: End November | K2: End December | L2: End January | M2: End February | N2: End March | O2: End April | P2: End May | Q2: End June | R2: End July
A3: Expected elec tariff rider revenue | C3: =-'Revenue By Month'!D39 -> -1045909.082 | D3: =-'Revenue By Month'!E39 -> -1019355.385 | E3: =-'Revenue By Month'!F39 -> -1052744.087 | F3: =-'Revenue By Month'!G39 -> -1200819.76 | G3: =-'Revenue By Month'!H39 -> -1241039.588 | H3: =-'Revenue By Month'!I39 -> -1043314.827 | I3: =-'Revenue By Month'!J39 -> -1081260.765 | J3: =-'Revenue By Month'!K39 -> -1230960.399 | K3: =-'Revenue By Month'!L39 -> -1396437.504 | L3: =-'Revenue By Month'!M39 -> -1405408.879 | M3: =-'Revenue By Month'!N39 -> -1252164.309 | N3: =-'Revenue By Month'!O39 -> -1172794.111 | O3: =-'Revenue By Month'!P39 -> -1041174.119 | P3: =-'Revenue By Month'!Q39 -> -1015475.256 | Q3: =-'Revenue By Month'!R39 -> -1046315.514 | R3: =-'Revenue By Month'!S39 -> -1176720.866
A4: Expected DSM expenditures | C4: ='Expense Summary'!C49 -> 1155600.802 | D4: ='Expense Summary'!D49 -> 1374385.592 | E4: ='Expense Summary'!E49 -> 1665325.782 | F4: ='Expense Summary'!F49 -> 1183833.892 | G4: ='Expense Summary'!G49 -> 1136862.002 | H4: ='Expense Summary'!H49 -> 1330945.442 | I4: ='Expense Summary'!I49 -> 1454842.832 | J4: ='Expense Summary'!J49 -> 1318468.262 | K4: ='Expense Summary'!K49 -> 2433007.222 | L4: ='Expense Summary'!L49 -> 1355287.858 | M4: ='Expense Summary'!M49 -> 1691796.078 | N4: ='Expense Summary'!N49 -> 1375068.187 | O4: ='Expense Summary'!C65 -> 1166017.468 | P4: ='Expense Summary'!D65 -> 1384802.258 | Q4: ='Expense Summary'!E65 -> 1675742.448 | R4: ='Expense Summary'!F65 -> 1194250.558
A5: Net change in balance | C5: =C3+C4 -> 109691.72 | D5: =D3+D4 -> 355030.2068 | E5: =E3+E4 -> 612581.6947 | F5: -16985.86824 | G5: -104177.5863 | H5: 287630.6145 | I5: 373582.0669 | J5: 87507.86231 | K5: 1036569.718 | L5: -50121.02023 | M5: 439631.7698 | N5: 202274.0766 | O5: 124843.3492 | P5: 369327.0019 | Q5: 629426.9345 | R5: 17529.6926
A6: Accounting Adjustment
A7: Elec Tariff rider balance | B7: -3714997.44 | C7: =C5+C6+B7 -> -3605305.72 | D7: =D5+D6+C7 -> -3250275.513 | E7: =E5+E6+D7 -> -2637693.819 | F7: =F5+F6+E7 -> -2654679.687 | G7: =G5+G6+F7 -> -2758857.273 | H7: -2471226.659 | I7: -2097644.592 | J7: -2010136.729 | K7: -973567.0115 | L7: -1023688.032 | M7: -584056.2619 | N7: -381782.1853 | O7: -256938.8361 | P7: 112388.1657 | Q7: 741815.1002 | R7: =Q7+R5+R6 -> 759344.7928
A13: Tariff rider balance annual interest rate | B13: 0 | C13: applied to E "shareholder owes customer" balances.
A14: 2015 Washington electric DSM budget | C14: CY 2016 expected expenditures
A15: 2016 Washington electric DSM budget | B15: =B14*1.02 -> 0 | C15: CY 2017 expected expenditures + 2% increase
A19: End of July Balance | B19: =F7 -> -2654679.687 | C19: Overfunded "Rebate"
A20: Aug 2021 - July 2023 Expenditure Budget | B20: =SUM(G4:R4) -> 17517090.62
A21: Aug 2021 - July 2023 Forecasted Revenue | B21: =SUM(G3:R3) -> -14103066.14
B22: =SUM(C6:R6) -> 0
A23: Total Projected DSM Balance July 2023 | B23: =B19+B20+B22+B21 -> 759344.7928 | C23: Overfunded
B25: Present | C25: Proposed
A26: Gross Annual Revenue Recovered | B26: ='WA Electric - Sched 91'!C11 -> 14757857.52 | C26: ='WA Electric - Sched 91'!C19 -> 14509924.57 | D26: =C26-B26 -> -247932.9498
A27: Revenue Conversion Factor | B27: ='Rev Conv Factor'!E22 -> 0.955631 | C27: ='Rev Conv Factor'!E22 -> 0.955631
A29: Net Annual Revenue to be Recovered | B29: =B26*B27 -> 14103066.14 | C29: =C26*C27 -> 13866133.72 | D29: =C29-B29 -> -236932.4127
A33: August 2021 - July 2022
A34: Annual DSM Expense | B34: =SUM(G4:R4) -> 17517090.62
A35: Annual DSM Revenue | B35: =SUM(G3:R3) -> -14103066.14
B36: =B34+B35 -> 3414024.48

Sheet Expense Summary
A2: AVA Jet | B2: (All)
A3: Project Number | B3: 02803400
A5: Sum of Transaction Amount | C5: Accounting Period
A6: Task Number | B6: Task Name | C6: 202204 | D6: 202205 | E6: 202206 | F6: 202207 | G6: 202208 | H6: 202209 | I6: 202210 | J6: 202211 | K6: 202212 | L6: 202301 | M6: 202302 | N6: 202303 | O6: Grand Total
A7: 242609 | B7: DSM Residential | C7: 33824.28 | D7: 157505.63 | E7: 135716.55 | F7: 99943.95 | G7: 45885.37 | H7: 130712.85 | I7: 26496.77 | J7: 54155.61 | K7: 162930.67 | L7: 14960.15 | M7: 25479.13 | N7: 52802.56 | O7: 940413.52
A8: 242610 | B8: DSM Limited Inc Eff | C8: 5550.95 | D8: 2965.99 | E8: 4013.48 | F8: 4416.26 | G8: 21183.41 | H8: 4611.31 | I8: 6546.15 | J8: 2730.77 | K8: -154.69 | L8: 8007.83 | M8: 10808.93 | N8: 13232.97 | O8: 83913.36
A9: 242612 | B9: DSM Regional | C9: 18688.58 | D9: -23321.22 | E9: 365873.8 | F9: 4884.19 | G9: 26808.82 | H9: 328557.22 | I9: 158071.77 | J9: 12052.31 | K9: 250450.91 | L9: 5920.95 | M9: 16451.83 | N9: 317676.77 | O9: 1482115.93
A10: 242614 | B10: DSM General | C10: 60378.04 | D10: 132730.43 | E10: 52760.94 | F10: 46763.54 | G10: 54446.61 | H10: 54263.73 | I10: 58274.81 | J10: 58984.62 | K10: 193971.98 | L10: 170285.61 | M10: 121461.65 | N10: 129935.86 | O10: 1134257.82
A11: 242615 | B11: DSM Non Residentrial | C11: 87932.38 | D11: 102885.02 | E11: 151518.2 | F11: 80803.54 | G11: 116723.85 | H11: 120561.04 | I11: 88699.63 | J11: 119086.72 | K11: 185136.75 | L11: 125540.85 | M11: 80648.4 | N11: 199354.05 | O11: 1458890.43
A12: 242617 | B12: CEIP Implementation | H12: 965.56 | I12: 664.25 | J12: 1398.79 | K12: -497.34 | M12: 10925.87 | N12: 12147.56 | O12: 25604.69
A13: 242623 | B13: DSM Compliance | C13: -129.35 | D13: 427.97 | E13: 373.23 | F13: -199.97 | G13: 3450.98 | H13: 2073.42 | I13: 132.12 | M13: 7548.41 | O13: 13676.81
A14: 242624 | B14: CEEP Implemntn | C14: 1116.86 | D14: 864.16 | E14: 2591.7 | F14: -192.11 | G14: 657.34 | H14: 488.5 | I14: 153.58 | J14: 743.05 | K14: 34.21 | O14: 6457.29
A15: 242633 | B15: DSM Residential | C15: 39591.91 | D15: 40674.01 | E15: 37265.88 | F15: 38831.96 | G15: 30211.49 | H15: 44795.79 | I15: 41955.22 | J15: 45678.54 | K15: 50881.58 | L15: 25846.21 | M15: 82644.01 | N15: 99669.47 | O15: 578046.07
A16: 242634 | B16: DSM Limited Inc Eff | C16: 124894.93 | D16: 55002.51 | E16: 79575.54 | F16: 198593.36 | G16: 102022.89 | H16: 43738.64 | I16: 134150.34 | J16: 154213.46 | K16: 200477.35 | L16: 28939.16 | N16: 89389.23 | O16: 1210997.41
A17: 242638 | B17: DSM General | E17: 1500 | F17: 2851.1 | H17: 3153.02 | K17: 115.8 | O17: 7619.92
A18: 242639 | B18: DSM Non Residentrial | C18: 330352.37 | D18: 510059.47 | E18: 355663.56 | F18: 307340.16 | G18: 228812.5 | H18: 206187.68 | I18: 424880.32 | J18: 358882.25 | K18: 802691.44 | L18: 408180.98 | M18: 834232.2 | N18: 1424222.71 | O18: 6191505.64
A19: 242643 | B19: Always On Pilot | D19: 60 | E19: 85 | G19: 51140 | H19: 41510 | I19: 68285 | J19: 40410 | K19: 56995 | L19: 5530 | M19: -5 | N19: 10 | O19: 264020
A20: 242646 | B20: CEEP Rebates | C20: 39238.29 | D20: -54773.28 | E20: 26807.29 | H20: -99909.87 | I20: -4766 | K20: 3846.11 | L20: 1256 | M20: 5770.96 | N20: 162.38 | O20: -82368.12
A21: 242651 | B21: On-Bill Repayment | C21: 271.38 | D21: 927.97 | E21: 697.81 | F21: 378.92 | G21: 326.47 | H21: 258.07 | I21: 2552 | J21: 552.61 | K21: 859.71 | L21: 883.22 | M21: 1628.65 | N21: 998.15 | O21: 10334.96
A22: 242663 | B22: DSM General | C22: 22153.36 | D22: 30929.87 | E22: 38778.51 | F22: 1102.5 | G22: 11769.98 | H22: 18928.71 | I22: 16710.08 | J22: 17386.18 | K22: 70013.67 | L22: 49192.37 | M22: 5885.17 | N22: 38580.76 | O22: 321431.16
A23: 242667 | B23: Res MF Install Pilot | C23: 327.97 | D23: 722.06 | E23: 790.95 | F23: 583.26 | G23: 823.38 | H23: 611.13 | I23: 569.06 | J23: 757 | K23: 238.87 | L23: 784.87 | M23: 272.49 | N23: 1066.39 | O23: 7547.43
A24: 242669 | B24: General Plt-Inv Only | C24: 4411.46 | D24: 6825.58 | E24: 4034.21 | F24: 7883.74 | G24: 4112.34 | H24: 3102.8 | I24: 5006.68 | J24: 7962.79 | K24: 2299.72 | L24: 1638.4 | M24: -1550.72 | N24: 3893.49 | O24: 49620.49
A25: 242670 | B25: Res Direct Benefit | D25: 24762.32 | E25: 17812.9 | G25: 43638.22 | H25: 33069.18 | I25: 27106 | J25: 40288.37 | K25: 59943 | L25: 110292 | M25: 86672.4 | N25: 52770.2 | O25: 496354.59
A26: 242672 | B26: NonRes Dir Benefit | C26: 1600 | D26: 775 | E26: 1424.5 | F26: 3087.73 | G26: 3235 | H26: 3505 | I26: 4101.27 | J26: 1332.5 | K26: 2502.5 | M26: 3330 | N26: 251142.44 | O26: 276035.94
A27: 242673 | B27: DSM NEEA Committees | C27: 864.93 | E27: 689.08 | F27: 1092.2 | H27: 1959.71 | I27: -466.49 | K27: 2615.98 | L27: -1002.64 | N27: 2073.08 | O27: 7825.85
A28: 242683 | B28: DSM Residential | I28: 178.12 | K28: 9.5 | O28: 187.62
A29: 242684 | B29: DSM Limited Inc Eff | D29: 76.61 | E29: 2665.07 | G29: 124.5 | I29: 7774.19 | J29: 14758.03 | O29: 25398.4
A30: 242686 | B30: DSM Regional | N30: 44.8 | O30: 44.8
A31: 242688 | B31: DSM General | F31: 235.84 | I31: 147.44 | O31: 383.28
A32: 242689 | B32: DSM Non Residentrial | C32: 675.46 | D32: 273.85 | E32: 237.93 | F32: 270.72 | G32: 5354.1 | H32: 683.43 | I32: -183.39 | J32: 535.87 | K32: 839.29 | L32: 3821.57 | M32: 2135.29 | N32: 359.85 | O32: 15003.97
A33: 242691 | B33: Res Wx Audit Pilot | C33: 294.68 | D33: 449.32 | E33: 887.33 | F33: 1600.68 | G33: 2572.43 | H33: 3556.2 | I33: 4241.59 | J33: 2996.47 | K33: 3242.89 | L33: 1231.34 | M33: 3477.42 | N33: 4515.95 | O33: 29066.3
A34: Grand Total | C34: 772038.48 | D34: 990823.27 | E34: 1281763.46 | F34: 800271.57 | G34: 753299.68 | H34: 947383.12 | I34: 1071280.51 | J34: 934905.94 | K34: 2049444.9 | L34: 961308.87 | M34: 1297817.09 | N34: 2694048.67 | O34: 14554385.56
C36: 202304 | D36: 202305 | E36: 202306 | F36: 202307 | G36: 202308 | H36: 202309 | I36: 202310 | J36: 202311 | K36: 202312 | L36: 202401 | M36: 202402 | N36: 202403
B37: Additions
B38: MFDI Adjustment | C38: 16668.52167 | D38: 16668.52167 | E38: 16668.52167 | F38: 16668.52167 | G38: 16668.52167 | H38: 16668.52167 | I38: 16668.52167 | J38: 16668.52167 | K38: 16668.52167 | L38: 16668.52167 | M38: 16668.52167 | N38: 16668.52167 | O38: =SUM(C38:N38) -> 200022.26
B39: Low Income Funding Adj | C39: 25000 | D39: 25000 | E39: 25000 | F39: 25000 | G39: 25000 | H39: 25000 | I39: 25000 | J39: 25000 | K39: 25000 | L39: 35416.66667 | M39: 35416.66667 | N39: 35416.66667 | O39: 331250
B40: Labor | C40: 34658.4729 | D40: 34658.4729 | E40: 34658.4729 | F40: 34658.4729 | G40: 34658.4729 | H40: 34658.4729 | I40: 34658.4729 | J40: 34658.4729 | K40: 34658.4729 | L40: 34658.4729 | M40: 34658.4729 | N40: 34658.4729 | O40: 415901.6747
B41: Midstream | C41: 37920.83333 | D41: 37920.83333 | E41: 37920.83333 | F41: 37920.83333 | G41: 37920.83333 | H41: 37920.83333 | I41: 37920.83333 | J41: 37920.83333 | K41: 37920.83333 | L41: 37920.83333 | M41: 37920.83333 | N41: 37920.83333 | O41: 455050
B42: Named Communities | C42: 116666.6667 | D42: 116666.6667 | E42: 116666.6667 | F42: 116666.6667 | G42: 116666.6667 | H42: 116666.6667 | I42: 116666.6667 | J42: 116666.6667 | K42: 116666.6667 | L42: 116666.6667 | M42: 116666.6667 | N42: 116666.6667 | O42: 1400000
B43: LESS: Downstream | C43: -16133.33333 | D43: -16133.33333 | E43: -16133.33333 | F43: -16133.33333 | G43: -16133.33333 | H43: -16133.33333 | I43: -16133.33333 | J43: -16133.33333 | K43: -16133.33333 | L43: -16133.33333 | M43: -16133.33333 | N43: -16133.33333 | O43: -193600
B44: ADD: Incent Revisions | C44: 65656.16039 | D44: 65656.16039 | E44: 65656.16039 | F44: 65656.16039 | G44: 65656.16039 | H44: 65656.16039 | I44: 65656.16039 | J44: 65656.16039 | K44: 65656.16039 | L44: 65656.16039 | M44: 65656.16039 | N44: 65656.16039 | O44: 787873.9246
B45: ADD: DI Lighting | C45: 103125 | D45: 103125 | E45: 103125 | F45: 103125 | G45: 103125 | H45: 103125 | I45: 103125 | J45: 103125 | K45: 103125 | L45: 103125 | M45: 103125 | N45: 103125 | O45: 1237500
B47: Historic Expense | C47: 772038.48 | D47: 990823.27 | E47: 1281763.46 | F47: 800271.57 | G47: 753299.68 | H47: 947383.12 | I47: 1071280.51 | J47: 934905.94 | K47: 2049444.9 | L47: 961308.87 | M47: 1297817.09 | N47: =AVERAGE(L47:M47,C47:J47) -> 981089.199 | O47: =SUM(C47:N47) -> 12841426.09
B49: Revised Expense | C49: =SUM(C38:C47) -> 1155600.802 | D49: 1374385.592 | E49: 1665325.782 | F49: 1183833.892 | G49: 1136862.002 | H49: 1330945.442 | I49: 1454842.832 | J49: 1318468.262 | K49: 2433007.222 | L49: 1355287.858 | M49: 1691796.078 | N49: =SUM(N38:N47) -> 1375068.187 | O49: =SUM(C49:N49) -> 17475423.95
C52: 202404 | D52: 202405 | E52: 202406 | F52: 202407 | G52: 202408 | H52: 202409 | I52: 202410 | J52: 202411 | K52: 202412 | L52: 202501 | M52: 202502 | N52: 202503
B53: Additions
B54: MFDI Adjustment | C54: 16668.52167 | D54: 16668.52167 | E54: 16668.52167 | F54: 16668.52167 | G54: 16668.52167 | H54: 16668.52167 | I54: 16668.52167 | J54: 16668.52167 | K54: 16668.52167 | L54: 16668.52167 | M54: 16668.52167 | N54: 16668.52167 | O54: =SUM(C54:N54) -> 200022.26
B55: Low Income Funding Adj | C55: 35416.66667 | D55: 35416.66667 | E55: 35416.66667 | F55: 35416.66667 | G55: 35416.66667 | H55: 35416.66667 | I55: 35416.66667 | J55: 35416.66667 | K55: 35416.66667 | L55: 35416.66667 | M55: 35416.66667 | N55: 35416.66667 | O55: 425000
B56: Labor | C56: 34658.4729 | D56: 34658.4729 | E56: 34658.4729 | F56: 34658.4729 | G56: 34658.4729 | H56: 34658.4729 | I56: 34658.4729 | J56: 34658.4729 | K56: 34658.4729 | L56: 34658.4729 | M56: 34658.4729 | N56: 34658.4729 | O56: 415901.6747
B57: Midstream | C57: 37920.83333 | D57: 37920.83333 | E57: 37920.83333 | F57: 37920.83333 | G57: 37920.83333 | H57: 37920.83333 | I57: 37920.83333 | J57: 37920.83333 | K57: 37920.83333 | L57: 37920.83333 | M57: 37920.83333 | N57: 37920.83333 | O57: 455050
B58: Named Communities | C58: 116666.6667 | D58: 116666.6667 | E58: 116666.6667 | F58: 116666.6667 | G58: 116666.6667 | H58: 116666.6667 | I58: 116666.6667 | J58: 116666.6667 | K58: 116666.6667 | L58: 116666.6667 | M58: 116666.6667 | N58: 116666.6667 | O58: 1400000
B59: LESS: Downstream | C59: -16133.33333 | D59: -16133.33333 | E59: -16133.33333 | F59: -16133.33333 | G59: -16133.33333 | H59: -16133.33333 | I59: -16133.33333 | J59: -16133.33333 | K59: -16133.33333 | L59: -16133.33333 | M59: -16133.33333 | N59: -16133.33333 | O59: -193600
B60: ADD: Incent Revisions | C60: 65656.16039 | D60: 65656.16039 | E60: 65656.16039 | F60: 65656.16039 | G60: 65656.16039 | H60: 65656.16039 | I60: 65656.16039 | J60: 65656.16039 | K60: 65656.16039 | L60: 65656.16039 | M60: 65656.16039 | N60: 65656.16039 | O60: 787873.9246
B61: ADD: DI Lighting | C61: 103125 | D61: 103125 | E61: 103125 | F61: 103125 | G61: 103125 | H61: 103125 | I61: 103125 | J61: 103125 | K61: 103125 | L61: 103125 | M61: 103125 | N61: 103125 | O61: 1237500
B63: Historic Expense | C63: 772038.48 | D63: 990823.27 | E63: 1281763.46 | F63: 800271.57 | G63: 753299.68 | H63: 947383.12 | I63: 1071280.51 | J63: 934905.94 | K63: 2049444.9 | L63: 961308.87 | M63: 1297817.09 | N63: =AVERAGE(L63:M63,C63:J63) -> 981089.199 | O63: =SUM(C63:N63) -> 12841426.09
B65: Revised Expense | C65: =SUM(C54:C63) -> 1166017.468 | D65: 1384802.258 | E65: 1675742.448 | F65: 1194250.558 | G65: 1147278.668 | H65: 1341362.108 | I65: 1465259.498 | J65: 1328884.928 | K65: 2443423.888 | L65: 1355287.858 | M65: 1691796.078 | N65: =SUM(N54:N63) -> 1375068.187 | O65: =SUM(C65:N65) -> 17569173.95

Sheet Revenue By Month
A4: Forecasted Usage | D4: 2023-04-30 | E4: 2023-05-31 | F4: =EOMONTH(E4,1) -> 2023-06-30 | G4: =EOMONTH(F4,1) -> 2023-07-31 | H4: 2023-08-31 | I4: 2023-09-30 | J4: 2023-10-31 | K4: 2023-11-30 | L4: 2023-12-31 | M4: 2024-01-31 | N4: 2024-02-29 | O4: 2024-03-31 | P4: 2024-04-30 | Q4: 2024-05-31 | R4: 2024-06-30 | S4: 2024-07-31 | T4: 2024-08-31 | U4: 2024-09-30 | V4: 2024-10-31 | W4: 2024-11-30 | X4: 2024-12-31 | Y4: 2025-01-31 | Z4: 2025-02-28 | AA4: 2025-03-31 | AB4: 2025-04-30 | AC4: 2025-05-31 | AD4: 2025-06-30 | AE4: 2025-07-31
B5: Residential Schedule 001 | D5: ='Billing Determinants'!C19 -> 181583684.5 | E5: ='Billing Determinants'!D19 -> 162022515.3 | F5: ='Billing Determinants'!E19 -> 159931912.4 | G5: ='Billing Determinants'!F19 -> 198158176.6 | H5: ='Billing Determinants'!G19 -> 216731951.2 | I5: ='Billing Determinants'!H19 -> 164017440.8 | J5: ='Billing Determinants'!I19 -> 174053253.5 | K5: ='Billing Determinants'!J19 -> 236773377.2 | L5: ='Billing Determinants'!K19 -> 298266778.9 | M5: ='Billing Determinants'!L19 -> 302171651.6 | N5: ='Billing Determinants'!M19 -> 255730233.7 | O5: ='Billing Determinants'!N19 -> 225395651.4 | P5: ='Billing Determinants'!O19 -> 181906626.9 | Q5: ='Billing Determinants'!P19 -> 163109108.5 | R5: ='Billing Determinants'!Q19 -> 160836285.9 | S5: ='Billing Determinants'!R19 -> 192846665.1 | T5: ='Billing Determinants'!S19 -> 210550430.6 | U5: ='Billing Determinants'!T19 -> 163969095.7 | V5: ='Billing Determinants'!U19 -> 175095773.3 | W5: ='Billing Determinants'!V19 -> 231549337.1 | X5: ='Billing Determinants'!W19 -> 299152933.5 | Y5: ='Billing Determinants'!X19 -> 302328007.5 | Z5: ='Billing Determinants'!Y19 -> 258494889.7 | AA5: ='Billing Determinants'!Z19 -> 229713558.7 | AB5: ='Billing Determinants'!AA19 -> 186545860.4 | AC5: ='Billing Determinants'!AB19 -> 167672812.4 | AD5: ='Billing Determinants'!AC19 -> 163238286.1 | AE5: ='Billing Determinants'!AD19 -> 192721178.3
B6: General Svc Schedule 011/012 | D6: ='Billing Determinants'!C20 -> 50808435.73 | E6: ='Billing Determinants'!D20 -> 49109075.81 | F6: ='Billing Determinants'!E20 -> 49953954.8 | G6: ='Billing Determinants'!F20 -> 57741452.32 | H6: ='Billing Determinants'!G20 -> 57339320.13 | I6: ='Billing Determinants'!H20 -> 51272987.22 | J6: ='Billing Determinants'!I20 -> 52608254.54 | K6: ='Billing Determinants'!J20 -> 59878691.45 | L6: ='Billing Determinants'!K20 -> 67435321.27 | M6: ='Billing Determinants'!L20 -> 66133910.67 | N6: ='Billing Determinants'!M20 -> 60885910.69 | O6: ='Billing Determinants'!N20 -> 57688794.16 | P6: ='Billing Determinants'!O20 -> 50347560.91 | Q6: ='Billing Determinants'!P20 -> 48824704.07 | R6: ='Billing Determinants'!Q20 -> 50227686.13 | S6: ='Billing Determinants'!R20 -> 57931610.44 | T6: ='Billing Determinants'!S20 -> 57481870.09 | U6: ='Billing Determinants'!T20 -> 51262488.16 | V6: ='Billing Determinants'!U20 -> 53015017.32 | W6: ='Billing Determinants'!V20 -> 60234079.67 | X6: ='Billing Determinants'!W20 -> 67569214.43 | Y6: ='Billing Determinants'!X20 -> 67326490.03 | Z6: ='Billing Determinants'!Y20 -> 61658514.09 | AA6: ='Billing Determinants'!Z20 -> 58693530.29 | AB6: ='Billing Determinants'!AA20 -> 50945046.3 | AC6: ='Billing Determinants'!AB20 -> 49614516.31 | AD6: ='Billing Determinants'!AC20 -> 51011184.54 | AE6: ='Billing Determinants'!AD20 -> 58913531.6
B7: Large Gen Svc Schedule 021/022 | D7: ='Billing Determinants'!C21 -> 104269710.2 | E7: ='Billing Determinants'!D21 -> 108413207.4 | F7: ='Billing Determinants'!E21 -> 111040385 | G7: ='Billing Determinants'!F21 -> 120789739.2 | H7: ='Billing Determinants'!G21 -> 111952114.9 | I7: ='Billing Determinants'!H21 -> 105129211.8 | J7: ='Billing Determinants'!I21 -> 116328470.8 | K7: ='Billing Determinants'!J21 -> 116509335.8 | L7: ='Billing Determinants'!K21 -> 112361609.3 | M7: ='Billing Determinants'!L21 -> 108840193.3 | N7: ='Billing Determinants'!M21 -> 107061683.4 | O7: ='Billing Determinants'!N21 -> 104587213.6 | P7: ='Billing Determinants'!O21 -> 101691844.6 | Q7: ='Billing Determinants'!P21 -> 106046619.7 | R7: ='Billing Determinants'!Q21 -> 109214001.8 | S7: ='Billing Determinants'!R21 -> 118198030.8 | T7: ='Billing Determinants'!S21 -> 109436841.5 | U7: ='Billing Determinants'!T21 -> 102737660.4 | V7: ='Billing Determinants'!U21 -> 114507148.5 | W7: ='Billing Determinants'!V21 -> 114544780 | X7: ='Billing Determinants'!W21 -> 110492786.4 | Y7: ='Billing Determinants'!X21 -> 108454046.5 | Z7: ='Billing Determinants'!Y21 -> 105652220 | AA7: ='Billing Determinants'!Z21 -> 103521714.6 | AB7: ='Billing Determinants'!AA21 -> 99952564.99 | AC7: ='Billing Determinants'!AB21 -> 104634031.6 | AD7: ='Billing Determinants'!AC21 -> 108212062 | AE7: ='Billing Determinants'!AD21 -> 117589390.6
B8: Extra Large Gen Schedule 25 | D8: ='Billing Determinants'!C22 -> 84867685 | E8: ='Billing Determinants'!D22 -> 84074970 | F8: ='Billing Determinants'!E22 -> 90024038 | G8: ='Billing Determinants'!F22 -> 88297285 | H8: ='Billing Determinants'!G22 -> 95443061 | I8: ='Billing Determinants'!H22 -> 83739469 | J8: ='Billing Determinants'!I22 -> 87408384 | K8: ='Billing Determinants'!J22 -> 84996016 | L8: ='Billing Determinants'!K22 -> 84617796 | M8: ='Billing Determinants'!L22 -> 91017408 | N8: ='Billing Determinants'!M22 -> 79822758 | O8: ='Billing Determinants'!N22 -> 85787474 | P8: ='Billing Determinants'!O22 -> 86045432 | Q8: ='Billing Determinants'!P22 -> 84031959 | R8: ='Billing Determinants'!Q22 -> 86651976 | S8: ='Billing Determinants'!R22 -> 85922359 | T8: ='Billing Determinants'!S22 -> 94769422 | U8: ='Billing Determinants'!T22 -> 83521188 | V8: ='Billing Determinants'!U22 -> 85812002 | W8: ='Billing Determinants'!V22 -> 84557239 | X8: ='Billing Determinants'!W22 -> 83813238 | Y8: ='Billing Determinants'!X22 -> 90098560 | Z8: ='Billing Determinants'!Y22 -> 79110724 | AA8: ='Billing Determinants'!Z22 -> 84101558 | AB8: ='Billing Determinants'!AA22 -> 85999648 | AC8: ='Billing Determinants'!AB22 -> 83163103 | AD8: ='Billing Determinants'!AC22 -> 85928262 | AE8: ='Billing Determinants'!AD22 -> 85530841
B9: Pumping Schedule 31/32 | D9: ='Billing Determinants'!C23 -> 6023493.234 | E9: ='Billing Determinants'!D23 -> 13502436.75 | F9: ='Billing Determinants'!E23 -> 21744100.31 | G9: ='Billing Determinants'!F23 -> 25491747.6 | H9: ='Billing Determinants'!G23 -> 28414339.76 | I9: ='Billing Determinants'!H23 -> 22894573.2 | J9: ='Billing Determinants'!I23 -> 11407152.22 | K9: ='Billing Determinants'!J23 -> 1659747.446 | L9: ='Billing Determinants'!K23 -> 3324665.228 | M9: ='Billing Determinants'!L23 -> 3996028.926 | N9: ='Billing Determinants'!M23 -> 4398901.712 | O9: ='Billing Determinants'!N23 -> 4240882.9 | P9: ='Billing Determinants'!O23 -> 6327667.96 | Q9: ='Billing Determinants'!P23 -> 13808147.84 | R9: ='Billing Determinants'!Q23 -> 22265301.68 | S9: ='Billing Determinants'!R23 -> 25147825.08 | T9: ='Billing Determinants'!S23 -> 28438389.2 | U9: ='Billing Determinants'!T23 -> 22445550.07 | V9: ='Billing Determinants'!U23 -> 11475151.83 | W9: ='Billing Determinants'!V23 -> 1983651.976 | X9: ='Billing Determinants'!W23 -> 3363787.373 | Y9: ='Billing Determinants'!X23 -> 4126410.89 | Z9: ='Billing Determinants'!Y23 -> 4367103.123 | AA9: ='Billing Determinants'!Z23 -> 4193323.693 | AB9: ='Billing Determinants'!AA23 -> 6242712.673 | AC9: ='Billing Determinants'!AB23 -> 13309356.53 | AD9: ='Billing Determinants'!AC23 -> 21503664.39 | AE9: ='Billing Determinants'!AD23 -> 25365529.82
B10: Street and Area Lights | D10: ='Billing Determinants'!C24 -> 1302576.127 | E10: ='Billing Determinants'!D24 -> 1305319.058 | F10: ='Billing Determinants'!E24 -> 1315164.523 | G10: ='Billing Determinants'!F24 -> 1319522.924 | H10: ='Billing Determinants'!G24 -> 1343017.049 | I10: ='Billing Determinants'!H24 -> 1345900.796 | J10: ='Billing Determinants'!I24 -> 1314322.674 | K10: ='Billing Determinants'!J24 -> 1330329.701 | L10: ='Billing Determinants'!K24 -> 1338864.115 | M10: ='Billing Determinants'!L24 -> 1340188.065 | N10: ='Billing Determinants'!M24 -> 1272098.586 | O10: ='Billing Determinants'!N24 -> 1353925.382 | P10: ='Billing Determinants'!O24 -> 1292839.656 | Q10: ='Billing Determinants'!P24 -> 1297017.579 | R10: ='Billing Determinants'!Q24 -> 1313152.508 | S10: ='Billing Determinants'!R24 -> 1314340.399 | T10: ='Billing Determinants'!S24 -> 1313371.656 | U10: ='Billing Determinants'!T24 -> 1318741.236 | V10: ='Billing Determinants'!U24 -> 1283836.714 | W10: ='Billing Determinants'!V24 -> 1303362.031 | X10: ='Billing Determinants'!W24 -> 1306376.54 | Y10: ='Billing Determinants'!X24 -> 1324673.318 | Z10: ='Billing Determinants'!Y24 -> 1249320.633 | AA10: ='Billing Determinants'!Z24 -> 1328407.076 | AB10: ='Billing Determinants'!AA24 -> 1270504.385 | AC10: ='Billing Determinants'!AB24 -> 1273798.087 | AD10: ='Billing Determinants'!AC24 -> 1287598.232 | AE10: ='Billing Determinants'!AD24 -> 1291310.38
A11: Total Forecasted Usage | D11: =SUM(D5:D10) -> 428855584.8 | E11: =SUM(E5:E10) -> 418427524.3 | F11: 434009555 | G11: 491797923.6 | H11: 511223804.1 | I11: 428399582.8 | J11: 443119837.7 | K11: 501147497.6 | L11: 567345034.8 | M11: 573499380.6 | N11: 509171586.1 | O11: 479053941.5 | P11: =SUM(P5:P10) -> 427611972.1 | Q11: 417117556.8 | R11: 430508404 | S11: 481360830.8 | T11: =SUM(T5:T10) -> 501990325 | U11: 425254723.6 | V11: 441188929.6 | W11: 494172449.7 | X11: 565698336.3 | Y11: 573658188.3 | Z11: 510532771.5 | AA11: 481552092.3 | AB11: 430956336.8 | AC11: 419667617.9 | AD11: 431181057.3 | AE11: 481411781.7
D12: =D11-'Billing Determinants'!C25 -> 0 | E12: =E11-'Billing Determinants'!D25 -> 0 | F12: =F11-'Billing Determinants'!E25 -> 0 | G12: =G11-'Billing Determinants'!F25 -> 0 | H12: =H11-'Billing Determinants'!G25 -> 0 | I12: =I11-'Billing Determinants'!H25 -> 0 | J12: =J11-'Billing Determinants'!I25 -> 0 | K12: =K11-'Billing Determinants'!J25 -> 0 | L12: =L11-'Billing Determinants'!K25 -> 0 | M12: =M11-'Billing Determinants'!L25 -> 0 | N12: =N11-'Billing Determinants'!M25 -> 0 | O12: =O11-'Billing Determinants'!N25 -> 0 | P12: =P11-'Billing Determinants'!O25 -> 0 | Q12: =Q11-'Billing Determinants'!P25 -> 0 | R12: =R11-'Billing Determinants'!Q25 -> 0 | S12: =S11-'Billing Determinants'!R25 -> 0 | T12: =T11-'Billing Determinants'!S25 -> 0 | U12: =U11-'Billing Determinants'!T25 -> 0 | V12: =V11-'Billing Determinants'!U25 -> 0 | W12: =W11-'Billing Determinants'!V25 -> 0 | X12: =X11-'Billing Determinants'!W25 -> 0 | Y12: =Y11-'Billing Determinants'!X25 -> 0 | Z12: =Z11-'Billing Determinants'!Y25 -> 0 | AA12: =AA11-'Billing Determinants'!Z25 -> 0 | AB12: =AB11-'Billing Determinants'!AA25 -> 0 | AC12: =AC11-'Billing Determinants'!AB25 -> 0 | AD12: =AD11-'Billing Determinants'!AC25 -> 0 | AE12: =AE11-'Billing Determinants'!AD25 -> 0
A14: DSM Rates
B15: Residential Schedule 001 | D15: 0.002551992116 | E15: 0.002551992116 | F15: 0.002551992116 | G15: 0.002551992116 | H15: ='WA Electric - Sched 91'!$D$23 -> 0.002551992116 | I15: ='WA Electric - Sched 91'!$D$23 -> 0.002551992116 | J15: ='WA Electric - Sched 91'!$D$23 -> 0.002551992116 | K15: ='WA Electric - Sched 91'!$D$23 -> 0.002551992116 | L15: ='WA Electric - Sched 91'!$D$23 -> 0.002551992116 | M15: ='WA Electric - Sched 91'!$D$23 -> 0.002551992116 | N15: ='WA Electric - Sched 91'!$D$23 -> 0.002551992116 | O15: ='WA Electric - Sched 91'!$D$23 -> 0.002551992116 | P15: ='WA Electric - Sched 91'!$D$23 -> 0.002551992116 | Q15: ='WA Electric - Sched 91'!$D$23 -> 0.002551992116 | R15: ='WA Electric - Sched 91'!$D$23 -> 0.002551992116 | S15: ='WA Electric - Sched 91'!$D$23 -> 0.002551992116 | T15: ='WA Electric - Sched 91'!$D$23 -> 0.002551992116 | U15: ='WA Electric - Sched 91'!$D$23 -> 0.002551992116 | V15: ='WA Electric - Sched 91'!$D$23 -> 0.002551992116 | W15: ='WA Electric - Sched 91'!$D$23 -> 0.002551992116 | X15: ='WA Electric - Sched 91'!$D$23 -> 0.002551992116 | Y15: ='WA Electric - Sched 91'!$D$23 -> 0.002551992116 | Z15: ='WA Electric - Sched 91'!$D$23 -> 0.002551992116 | AA15: ='WA Electric - Sched 91'!$D$23 -> 0.002551992116 | AB15: ='WA Electric - Sched 91'!$D$23 -> 0.002551992116 | AC15: ='WA Electric - Sched 91'!$D$23 -> 0.002551992116 | AD15: ='WA Electric - Sched 91'!$D$23 -> 0.002551992116 | AE15: ='WA Electric - Sched 91'!$D$23 -> 0.002551992116
B16: General Svc Schedule 011/012 | D16: 0.003206845127 | E16: 0.003206845127 | F16: 0.003206845127 | G16: 0.003206845127 | H16: ='WA Electric - Sched 91'!$E$23 -> 0.003206845127 | I16: ='WA Electric - Sched 91'!$E$23 -> 0.003206845127 | J16: ='WA Electric - Sched 91'!$E$23 -> 0.003206845127 | K16: ='WA Electric - Sched 91'!$E$23 -> 0.003206845127 | L16: ='WA Electric - Sched 91'!$E$23 -> 0.003206845127 | M16: ='WA Electric - Sched 91'!$E$23 -> 0.003206845127 | N16: ='WA Electric - Sched 91'!$E$23 -> 0.003206845127 | O16: ='WA Electric - Sched 91'!$E$23 -> 0.003206845127 | P16: ='WA Electric - Sched 91'!$E$23 -> 0.003206845127 | Q16: ='WA Electric - Sched 91'!$E$23 -> 0.003206845127 | R16: ='WA Electric - Sched 91'!$E$23 -> 0.003206845127 | S16: ='WA Electric - Sched 91'!$E$23 -> 0.003206845127 | T16: ='WA Electric - Sched 91'!$E$23 -> 0.003206845127 | U16: ='WA Electric - Sched 91'!$E$23 -> 0.003206845127 | V16: ='WA Electric - Sched 91'!$E$23 -> 0.003206845127 | W16: ='WA Electric - Sched 91'!$E$23 -> 0.003206845127 | X16: ='WA Electric - Sched 91'!$E$23 -> 0.003206845127 | Y16: ='WA Electric - Sched 91'!$E$23 -> 0.003206845127 | Z16: ='WA Electric - Sched 91'!$E$23 -> 0.003206845127 | AA16: ='WA Electric - Sched 91'!$E$23 -> 0.003206845127 | AB16: ='WA Electric - Sched 91'!$E$23 -> 0.003206845127 | AC16: ='WA Electric - Sched 91'!$E$23 -> 0.003206845127 | AD16: ='WA Electric - Sched 91'!$E$23 -> 0.003206845127 | AE16: ='WA Electric - Sched 91'!$E$23 -> 0.003206845127
B17: Large Gen Svc Schedule 021/022 | D17: 0.002734844645 | E17: 0.002734844645 | F17: 0.002734844645 | G17: 0.002734844645 | H17: ='WA Electric - Sched 91'!$F$23 -> 0.002734844645 | I17: ='WA Electric - Sched 91'!$F$23 -> 0.002734844645 | J17: ='WA Electric - Sched 91'!$F$23 -> 0.002734844645 | K17: ='WA Electric - Sched 91'!$F$23 -> 0.002734844645 | L17: ='WA Electric - Sched 91'!$F$23 -> 0.002734844645 | M17: ='WA Electric - Sched 91'!$F$23 -> 0.002734844645 | N17: ='WA Electric - Sched 91'!$F$23 -> 0.002734844645 | O17: ='WA Electric - Sched 91'!$F$23 -> 0.002734844645 | P17: ='WA Electric - Sched 91'!$F$23 -> 0.002734844645 | Q17: ='WA Electric - Sched 91'!$F$23 -> 0.002734844645 | R17: ='WA Electric - Sched 91'!$F$23 -> 0.002734844645 | S17: ='WA Electric - Sched 91'!$F$23 -> 0.002734844645 | T17: ='WA Electric - Sched 91'!$F$23 -> 0.002734844645 | U17: ='WA Electric - Sched 91'!$F$23 -> 0.002734844645 | V17: ='WA Electric - Sched 91'!$F$23 -> 0.002734844645 | W17: ='WA Electric - Sched 91'!$F$23 -> 0.002734844645 | X17: ='WA Electric - Sched 91'!$F$23 -> 0.002734844645 | Y17: ='WA Electric - Sched 91'!$F$23 -> 0.002734844645 | Z17: ='WA Electric - Sched 91'!$F$23 -> 0.002734844645 | AA17: ='WA Electric - Sched 91'!$F$23 -> 0.002734844645 | AB17: ='WA Electric - Sched 91'!$F$23 -> 0.002734844645 | AC17: ='WA Electric - Sched 91'!$F$23 -> 0.002734844645 | AD17: ='WA Electric - Sched 91'!$F$23 -> 0.002734844645 | AE17: ='WA Electric - Sched 91'!$F$23 -> 0.002734844645
B18: Extra Large Gen Schedule 25 | D18: 0.001816750562 | E18: 0.001816750562 | F18: 0.001816750562 | G18: 0.001816750562 | H18: ='WA Electric - Sched 91'!$G$23 -> 0.001816750562 | I18: ='WA Electric - Sched 91'!$G$23 -> 0.001816750562 | J18: ='WA Electric - Sched 91'!$G$23 -> 0.001816750562 | K18: ='WA Electric - Sched 91'!$G$23 -> 0.001816750562 | L18: ='WA Electric - Sched 91'!$G$23 -> 0.001816750562 | M18: ='WA Electric - Sched 91'!$G$23 -> 0.001816750562 | N18: ='WA Electric - Sched 91'!$G$23 -> 0.001816750562 | O18: ='WA Electric - Sched 91'!$G$23 -> 0.001816750562 | P18: ='WA Electric - Sched 91'!$G$23 -> 0.001816750562 | Q18: ='WA Electric - Sched 91'!$G$23 -> 0.001816750562 | R18: ='WA Electric - Sched 91'!$G$23 -> 0.001816750562 | S18: ='WA Electric - Sched 91'!$G$23 -> 0.001816750562 | T18: ='WA Electric - Sched 91'!$G$23 -> 0.001816750562 | U18: ='WA Electric - Sched 91'!$G$23 -> 0.001816750562 | V18: ='WA Electric - Sched 91'!$G$23 -> 0.001816750562 | W18: ='WA Electric - Sched 91'!$G$23 -> 0.001816750562 | X18: ='WA Electric - Sched 91'!$G$23 -> 0.001816750562 | Y18: ='WA Electric - Sched 91'!$G$23 -> 0.001816750562 | Z18: ='WA Electric - Sched 91'!$G$23 -> 0.001816750562 | AA18: ='WA Electric - Sched 91'!$G$23 -> 0.001816750562 | AB18: ='WA Electric - Sched 91'!$G$23 -> 0.001816750562 | AC18: ='WA Electric - Sched 91'!$G$23 -> 0.001816750562 | AD18: ='WA Electric - Sched 91'!$G$23 -> 0.001816750562 | AE18: ='WA Electric - Sched 91'!$G$23 -> 0.001816750562
B19: Pumping Schedule 31/32 | D19: 0.002361382541 | E19: 0.002361382541 | F19: 0.002361382541 | G19: 0.002361382541 | H19: ='WA Electric - Sched 91'!$H$23 -> 0.002361382541 | I19: ='WA Electric - Sched 91'!$H$23 -> 0.002361382541 | J19: ='WA Electric - Sched 91'!$H$23 -> 0.002361382541 | K19: ='WA Electric - Sched 91'!$H$23 -> 0.002361382541 | L19: ='WA Electric - Sched 91'!$H$23 -> 0.002361382541 | M19: ='WA Electric - Sched 91'!$H$23 -> 0.002361382541 | N19: ='WA Electric - Sched 91'!$H$23 -> 0.002361382541 | O19: ='WA Electric - Sched 91'!$H$23 -> 0.002361382541 | P19: ='WA Electric - Sched 91'!$H$23 -> 0.002361382541 | Q19: ='WA Electric - Sched 91'!$H$23 -> 0.002361382541 | R19: ='WA Electric - Sched 91'!$H$23 -> 0.002361382541 | S19: ='WA Electric - Sched 91'!$H$23 -> 0.002361382541 | T19: ='WA Electric - Sched 91'!$H$23 -> 0.002361382541 | U19: ='WA Electric - Sched 91'!$H$23 -> 0.002361382541 | V19: ='WA Electric - Sched 91'!$H$23 -> 0.002361382541 | W19: ='WA Electric - Sched 91'!$H$23 -> 0.002361382541 | X19: ='WA Electric - Sched 91'!$H$23 -> 0.002361382541 | Y19: ='WA Electric - Sched 91'!$H$23 -> 0.002361382541 | Z19: ='WA Electric - Sched 91'!$H$23 -> 0.002361382541 | AA19: ='WA Electric - Sched 91'!$H$23 -> 0.002361382541 | AB19: ='WA Electric - Sched 91'!$H$23 -> 0.002361382541 | AC19: ='WA Electric - Sched 91'!$H$23 -> 0.002361382541 | AD19: ='WA Electric - Sched 91'!$H$23 -> 0.002361382541 | AE19: ='WA Electric - Sched 91'!$H$23 -> 0.002361382541
B20: Street and Area Lights | D20: 0.01118248874 | E20: 0.01118248874 | F20: 0.01118248874 | G20: 0.01118248874 | H20: ='WA Electric - Sched 91'!$I$23 -> 0.01118248874 | I20: ='WA Electric - Sched 91'!$I$23 -> 0.01118248874 | J20: ='WA Electric - Sched 91'!$I$23 -> 0.01118248874 | K20: ='WA Electric - Sched 91'!$I$23 -> 0.01118248874 | L20: ='WA Electric - Sched 91'!$I$23 -> 0.01118248874 | M20: ='WA Electric - Sched 91'!$I$23 -> 0.01118248874 | N20: ='WA Electric - Sched 91'!$I$23 -> 0.01118248874 | O20: ='WA Electric - Sched 91'!$I$23 -> 0.01118248874 | P20: ='WA Electric - Sched 91'!$I$23 -> 0.01118248874 | Q20: ='WA Electric - Sched 91'!$I$23 -> 0.01118248874 | R20: ='WA Electric - Sched 91'!$I$23 -> 0.01118248874 | S20: ='WA Electric - Sched 91'!$I$23 -> 0.01118248874 | T20: ='WA Electric - Sched 91'!$I$23 -> 0.01118248874 | U20: ='WA Electric - Sched 91'!$I$23 -> 0.01118248874 | V20: ='WA Electric - Sched 91'!$I$23 -> 0.01118248874 | W20: ='WA Electric - Sched 91'!$I$23 -> 0.01118248874 | X20: ='WA Electric - Sched 91'!$I$23 -> 0.01118248874 | Y20: ='WA Electric - Sched 91'!$I$23 -> 0.01118248874 | Z20: ='WA Electric - Sched 91'!$I$23 -> 0.01118248874 | AA20: ='WA Electric - Sched 91'!$I$23 -> 0.01118248874 | AB20: ='WA Electric - Sched 91'!$I$23 -> 0.01118248874 | AC20: ='WA Electric - Sched 91'!$I$23 -> 0.01118248874 | AD20: ='WA Electric - Sched 91'!$I$23 -> 0.01118248874 | AE20: ='WA Electric - Sched 91'!$I$23 -> 0.01118248874
A23: Gross DSM Revenue | D23: =D4 -> 2023-04-30 | E23: =E4 -> 2023-05-31 | F23: 2023-06-30 | G23: 2023-07-31 | H23: 2023-08-31 | I23: 2023-09-30 | J23: 2023-10-31 | K23: 2023-11-30 | L23: 2023-12-31 | M23: 2024-01-31 | N23: 2024-02-29 | O23: 2024-03-31 | P23: 2024-04-30 | Q23: 2024-05-31 | R23: 2024-06-30 | S23: 2024-07-31 | T23: =T4 -> 2024-08-31 | U23: 2024-09-30 | V23: 2024-10-31 | W23: 2024-11-30 | X23: 2024-12-31 | Y23: 2025-01-31 | Z23: 2025-02-28 | AA23: 2025-03-31 | AB23: 2025-04-30 | AC23: 2025-05-31 | AD23: 2025-06-30 | AE23: 2025-07-31
B24: Residential Schedule 001 | D24: =D5*D15 -> 463400.1313 | E24: =E5*E15 -> 413480.1817 | F24: =F5*F15 -> 408144.9795 | G24: =G5*G15 -> 505698.1043 | H24: 553098.2308 | I24: 418571.2157 | J24: 444182.5307 | K24: 604243.7919 | L24: 761174.468 | M24: 771139.6725 | N24: 652621.5401 | O24: 575207.9252 | P24: =P5*P15 -> 464224.2777 | Q24: 416253.159 | R24: 410452.9335 | S24: =S5*S15 -> 492143.1689 | T24: =T5*T15 -> 537323.0388 | U24: 418447.8394 | V24: 446843.0329 | W24: 590912.0826 | X24: 763435.9278 | Y24: 771538.6915 | Z24: 659676.9205 | AA24: 586227.1906 | AB24: 476063.565 | AC24: 427899.6951 | AD24: 416582.8192 | AE24: 491822.9276
B25: General Svc Schedule 011/012 | D25: =D6*D16 -> 162934.7845 | E25: =E6*E16 -> 157485.2005 | F25: 160194.5965 | G25: 185167.895 | H25: 183878.3193 | I25: 164424.5292 | J25: 168706.5247 | K25: 192021.6899 | L25: 216254.6314 | M25: 212081.2092 | N25: 195251.686 | O25: 184999.0284 | P25: =P6*P16 -> 161456.8304 | Q25: 156573.2643 | R25: 161072.4105 | S25: 185777.7027 | T25: =T6*T16 -> 184335.455 | U25: 164390.8604 | V25: 170010.95 | W25: 193161.3649 | X25: 216684.0061 | Y25: 215905.6265 | Z25: 197729.3054 | AA25: 188221.0616 | AB25: 163372.8735 | AC25: 159106.0699 | AD25: 163584.9686 | AE25: 188926.5717
B26: Large Gen Svc Schedule 021/022 | D26: =D7*D17 -> 285161.4586 | E26: =E7*E17 -> 296493.2796 | F26: 303678.2024 | G26: 330341.1714 | H26: 306171.642 | I26: 287512.062 | J26: 318140.2954 | K26: 318634.9332 | L26: 307291.5455 | M26: 297661.0198 | N26: 292797.0717 | O26: 286029.7812 | P26: =P7*P17 -> 278111.3967 | Q26: 290021.0302 | R26: 298683.328 | S26: 323253.2516 | T26: =T7*T17 -> 299292.76 | U26: 280971.5405 | V26: 313159.2619 | W26: 313262.1781 | X26: 302180.6053 | Y26: 296604.9685 | Z26: 288942.4081 | AA26: 283115.8068 | AB26: 273354.7371 | AC26: 286157.821 | AD26: 295943.1784 | AE26: 321588.7152
B27: Extra Large Gen Schedule 25 | D27: =D8*D18 -> 154183.4144 | E27: =E8*E18 -> 152743.249 | F27: 163551.2216 | G27: 160414.1422 | H27: 173396.2347 | I27: 152133.7274 | J27: 158799.2308 | K27: 154416.5599 | L27: 153729.4285 | M27: 165355.9272 | N27: 145018.0405 | O27: 155854.4416 | P27: =P8*P18 -> 156323.087 | Q27: 152665.1088 | R27: 157425.0261 | S27: 156099.494 | T27: =T8*T18 -> 172172.4007 | U27: 151737.1653 | V27: 155899.0029 | W27: 153619.4115 | X27: 152267.7473 | Y27: 163686.6095 | Z27: 143724.4523 | AA27: 152791.5528 | AB27: 156239.9089 | AC27: 151086.6141 | AD27: 156110.2183 | AE27: 155388.2035
B28: Pumping Schedule 31/32 | D28: =D9*D19 -> 14223.77176 | E28: =E9*E19 -> 31884.41841 | F28: 51346.13884 | G28: 60195.76772 | H28: 67097.12582 | I28: 54062.84546 | J28: 26936.65011 | K28: 3919.298642 | L28: 7850.806425 | M28: 9436.152941 | N28: 10387.4897 | O28: 10014.34684 | P28: =P9*P19 -> 14942.04465 | Q28: 32606.31924 | R28: 52576.89468 | S28: 59383.6351 | T28: =T9*T19 -> 67153.91576 | U28: 53002.53006 | V28: 27097.22319 | W28: 4684.161145 | X28: 7943.188775 | Y28: 9744.034635 | Z28: 10312.40107 | AA28: 9902.041358 | AB28: 14741.43272 | AC28: 31428.48214 | AD28: 50778.37767 | AE28: 59897.71928
B29: Street and Area Lights | D29: =D10*D20 -> 14566.04287 | E29: =E10*E20 -> 14596.71567 | F29: 14706.81247 | G29: 14755.55023 | H29: 15018.27302 | I29: 15050.52049 | J29: =J10*J20 -> 14697.3985 | K29: 14876.3969 | L29: 14971.83289 | M29: 14986.63794 | N29: 14225.22811 | O29: =O10*O20 -> 15140.25534 | P29: =P10*P20 -> 14457.1649 | Q29: 14503.88448 | R29: 14684.31314 | S29: 14697.59671 | T29: =T10*T20 -> 14686.76375 | U29: 14746.80902 | V29: 14356.48959 | W29: 14574.83124 | X29: 14608.54095 | Y29: 14813.14446 | Z29: 13970.51391 | AA29: 14854.89717 | AB29: 14207.40097 | AC29: 14244.23276 | AD29: 14398.55273 | AE29: 14440.06378
B30: Total | D30: =SUM(D24:D29) -> 1094469.603 | E30: =SUM(E24:E29) -> 1066683.045 | F30: 1101621.951 | G30: 1256572.631 | H30: 1298659.826 | I30: 1091754.9 | J30: 1131462.63 | K30: 1288112.67 | L30: 1461272.713 | M30: =SUM(M24:M29) -> 1470660.62 | N30: 1310301.056 | O30: 1227245.779 | P30: =SUM(P24:P29) -> 1089514.801 | Q30: 1062622.766 | R30: 1094894.906 | S30: 1231354.849 | T30: =SUM(T24:T29) -> 1274964.334 | U30: 1083296.745 | V30: 1127365.96 | W30: 1270214.029 | X30: 1457120.016 | Y30: 1472293.075 | Z30: 1314356.001 | AA30: 1235112.55 | AB30: 1097979.918 | AC30: 1069922.915 | AD30: 1097398.115 | AE30: 1232064.201 | AG30: =SUM(H30:S30)-'WA Electric - Sched 91'!D39 -> 247932.9498
A32: Net DSM Revenue | C32: ='Rev Conv Factor'!E22 -> 0.955631 | D32: =D4 -> 2023-04-30 | E32: =E4 -> 2023-05-31 | F32: 2023-06-30 | G32: 2023-07-31 | H32: 2023-08-31 | I32: 2023-09-30 | J32: 2023-10-31 | K32: 2023-11-30 | L32: 2023-12-31 | M32: 2024-01-31 | N32: 2024-02-29 | O32: 2024-03-31 | P32: 2024-04-30 | Q32: 2024-05-31 | R32: 2024-06-30 | S32: 2024-07-31 | T32: =T4 -> 2024-08-31 | U32: 2024-09-30 | V32: 2024-10-31 | W32: 2024-11-30 | X32: 2024-12-31 | Y32: 2025-01-31 | Z32: 2025-02-28 | AA32: 2025-03-31 | AB32: 2025-04-30 | AC32: 2025-05-31 | AD32: 2025-06-30 | AE32: 2025-07-31
B33: Residential Schedule 001 | D33: =D24*$C$32 -> 442839.5308 | E33: =E24*$C$32 -> 395134.4795 | F33: =F24*$C$32 -> 390035.9949 | G33: =G24*$C$32 -> 483260.7852 | H33: 528557.8154 | I33: 399999.6295 | J33: 424474.596 | K33: 577434.0991 | L33: 727401.918 | M33: 736924.9764 | N33: 623665.375 | O33: 549686.5247 | P33: =P24*$C$32 -> 443627.1108 | Q33: 397784.4225 | R33: 392241.5473 | S33: =S24*$C$32 -> 470307.2686 | T33: =T24*$C$32 -> 513482.5529 | U33: 399881.7272 | V33: 427017.0544 | W33: 564693.9044 | X33: 729563.0391 | Y33: 737306.2913 | Z33: 630407.7152 | AA33: 560216.8764 | AB33: 454941.1006 | AC33: 408914.2136 | AD33: 398099.4561 | AE33: 470001.2362
B34: General Svc Schedule 011/012 | D34: =D25*$C$32 -> 155705.5311 | E34: =E25*$C$32 -> 150497.7396 | F34: 153086.9225 | G34: 176952.1807 | H34: 175719.8222 | I34: 157129.1773 | J34: 161221.1849 | K34: 183501.8795 | L34: 206659.6297 | M34: 202671.378 | N34: 186588.5639 | O34: 176790.8066 | P34: =P25*$C$32 -> 154293.1523 | Q34: 149626.2652 | R34: 153925.7887 | S34: 177534.9318 | T34: =T25*$C$32 -> 176156.6752 | U34: 157097.0023 | V34: 162467.7341 | W34: 184590.9883 | X34: 207069.9534 | Y34: 206326.1098 | Z34: 188956.2539 | AA34: 179869.8813 | AB34: 156124.1825 | AC34: 152046.6927 | AD34: 156326.8671 | AE34: 180544.0887
B35: Large Gen Svc Schedule 021/022 | D35: =D26*$C$32 -> 272509.1299 | E35: =E26*$C$32 -> 283338.1693 | F35: 290204.3042 | G35: 315684.264 | H35: 292587.1124 | I35: 274755.4393 | J35: 304024.7286 | K35: 304497.4198 | L35: 293657.3269 | M35: 284454.098 | N35: 279805.9584 | O35: 273338.9259 | P35: =P26*$C$32 -> 265771.8721 | Q35: 277153.0871 | R35: 285431.0474 | S35: 308910.8281 | T35: =T26*$C$32 -> 286013.4395 | U35: 268505.1143 | V35: 299264.6986 | W35: 299363.0485 | X35: 288773.154 | Y35: 283444.9026 | Z35: 276122.3224 | AA35: 270554.2415 | AB35: 261226.2608 | AC35: 273461.2847 | AD35: 282812.4755 | AE35: 307320.1455
B36: Extra Large Gen Schedule 25 | D36: =D27*$C$32 -> 147342.4505 | E36: =E27*$C$32 -> 145966.1838 | F36: 156294.6175 | G36: 153296.7271 | H36: 165702.8172 | I36: 145383.706 | J36: 151753.4677 | K36: 147565.2515 | L36: 146908.6074 | M36: 158019.25 | N36: 138583.735 | O36: 148939.3359 | P36: =P27*$C$32 -> 149387.1879 | Q36: 145891.5105 | R36: 150440.2351 | S36: 149173.5156 | T36: =T27*$C$32 -> 164533.2834 | U36: 145004.739 | V36: 148981.92 | W36: 146803.4718 | X36: 145511.7796 | Y36: 156423.9984 | Z36: 137347.5421 | AA36: 146012.3444 | AB36: 149307.7003 | AC36: 144383.0521 | AD36: 149183.764 | AE36: 148493.7843
B37: Pumping Schedule 31/32 | D37: =D28*$C$32 -> 13592.67723 | E37: =E28*$C$32 -> 30469.73865 | F37: 49067.96201 | G37: 57524.9417 | H37: 64120.09345 | I37: 51664.13107 | J37: 25741.49788 | K37: 3745.403281 | L37: 7502.473995 | M37: 9017.480271 | N37: 9926.607174 | O37: 9570.020285 | P37: =P28*$C$32 -> 14279.08107 | Q37: 31159.60946 | R37: 50244.11044 | S37: 56748.84259 | T37: =T28*$C$32 -> 64174.36368 | U37: 50650.8608 | V37: 25894.94649 | W37: 4476.329599 | X37: 7590.757432 | Y37: 9311.701562 | Z37: 9854.850148 | AA37: 9462.697685 | AB37: 14087.37009 | AC37: 30034.03181 | AD37: 48525.39183 | AE37: 57240.11737
B38: Street and Area Lights | D38: =D29*$C$32 -> 13919.76211 | E38: =E29*$C$32 -> 13949.07399 | F38: =F29*$C$32 -> 14054.28591 | G38: 14100.86123 | H38: 14351.92727 | I38: 14382.74395 | J38: 14045.28962 | K38: 14216.34605 | L38: 14307.54764 | M38: 14321.6958 | N38: 13594.06896 | O38: 14468.49735 | P38: =P29*$C$32 -> 13815.71495 | Q38: 13860.36163 | R38: 14032.78485 | S38: 14045.47905 | T38: =T29*$C$32 -> 14035.12673 | U38: 14092.50785 | V38: 13719.50651 | W38: 13928.16055 | X38: 13960.37459 | Y38: 14155.90005 | Z38: 13350.65618 | AA38: 14195.80024 | AB38: 13577.0328 | AC38: 13612.2304 | AD38: 13759.70334 | AE38: 13799.37259
B39: Total | D39: =SUM(D33:D38) -> 1045909.082 | E39: =SUM(E33:E38) -> 1019355.385 | F39: 1052744.087 | G39: 1200819.76 | H39: 1241039.588 | I39: 1043314.827 | J39: 1081260.765 | K39: 1230960.399 | L39: 1396437.504 | M39: 1405408.879 | N39: 1252164.309 | O39: 1172794.111 | P39: =SUM(P33:P38) -> 1041174.119 | Q39: 1015475.256 | R39: 1046315.514 | S39: 1176720.866 | T39: =SUM(T33:T38) -> 1218395.441 | U39: 1035231.951 | V39: 1077345.86 | W39: 1213855.903 | X39: 1392469.058 | Y39: 1406968.904 | Z39: 1256039.34 | AA39: 1180311.842 | AB39: 1049263.647 | AC39: 1022451.505 | AD39: 1048707.658 | AE39: 1177398.745 | AG39: =SUM(H39:S39)-'WA Electric - Sched 91'!D42 -> 236932.4127

Sheet Billing Determinants
A4: Forecasted Loads
C7: 2023-04-30 | D7: 2023-05-31 | E7: =EOMONTH(D7,1) -> 2023-06-30 | F7: =EOMONTH(E7,1) -> 2023-07-31 | G7: 2023-08-31 | H7: 2023-09-30 | I7: 2023-10-31 | J7: 2023-11-30 | K7: 2023-12-31 | L7: 2024-01-31 | M7: 2024-02-29 | N7: 2024-03-31 | O7: 2024-04-30 | P7: 2024-05-31 | Q7: 2024-06-30 | R7: 2024-07-31 | S7: 2024-08-31 | T7: 2024-09-30 | U7: 2024-10-31 | V7: 2024-11-30 | W7: 2024-12-31 | X7: 2025-01-31 | Y7: 2025-02-28 | Z7: 2025-03-31 | AA7: 2025-04-30 | AB7: 2025-05-31 | AC7: 2025-06-30 | AD7: 2025-07-31
A8: WA001/002 | C8: =C32+C33 -> 181583684.5 | D8: =D32+D33 -> 162022515.3 | E8: =E32+E33 -> 159931912.4 | F8: 198158176.6 | G8: 216731951.2 | H8: 164017440.8 | I8: 174053253.5 | J8: 236773377.2 | K8: 298266778.9 | L8: 302171651.6 | M8: 255730233.7 | N8: 225395651.4 | O8: 181906626.9 | P8: 163109108.5 | Q8: 160836285.9 | R8: 192846665.1 | S8: 210550430.6 | T8: 163969095.7 | U8: 175095773.3 | V8: 231549337.1 | W8: 299152933.5 | X8: 302328007.5 | Y8: 258494889.7 | Z8: 229713558.7 | AA8: 186545860.4 | AB8: 167672812.4 | AC8: 163238286.1 | AD8: 192721178.3
A9: WA011/013 | C9: =C34+C36 -> 45744058.82 | D9: =D34+D36 -> 44698709.3 | E9: =E34+E36 -> 45773712.59 | F9: 53125016.66 | G9: 52706150.18 | H9: 47055606.38 | I9: 47666034.95 | J9: 53256342.65 | K9: 58790656.22 | L9: 57503111.88 | M9: 53485921.93 | N9: 51010515.92 | O9: 45314465.91 | P9: 44433026.29 | Q9: 45974672 | R9: 53279591.41 | S9: 52805808.02 | T9: 47013340.04 | U9: 48055574.37 | V9: 53441032.85 | W9: 58952982.18 | X9: 58537190.53 | Y9: 54124921.34 | Z9: 51771477.73 | AA9: 45754040.61 | AB9: 45116362.2 | AC9: 46634201.49 | AD9: 54068754.25
A10: WA012 | C10: =C35 -> 5064376.913 | D10: =D35 -> 4410366.517 | E10: =E35 -> 4180242.205 | F10: 4616435.657 | G10: 4633169.947 | H10: 4217380.843 | I10: 4942219.585 | J10: 6622348.804 | K10: 8644665.055 | L10: 8630798.789 | M10: 7399988.755 | N10: 6678278.239 | O10: 5033094.999 | P10: 4391677.778 | Q10: 4253014.127 | R10: 4652019.032 | S10: 4676062.075 | T10: 4249148.129 | U10: 4959442.948 | V10: 6793046.823 | W10: 8616232.258 | X10: 8789299.5 | Y10: 7533592.742 | Z10: 6922052.568 | AA10: 5191005.691 | AB10: 4498154.113 | AC10: 4376983.045 | AD10: 4844777.349
A11: WA021/023 | C11: =C37+C39 -> 102035935.7 | D11: =D37+D39 -> 106359688.1 | E11: =E37+E39 -> 109019411.4 | F11: 118366321.5 | G11: 109552067.6 | H11: 102998331.1 | I11: 113994119.8 | J11: 113839795.8 | K11: 108805971.7 | L11: 105372875.8 | M11: 104193316.9 | N11: 101910431.9 | O11: 99523644.36 | P11: 104041248.3 | Q11: 107230126.8 | R11: 115796156.4 | S11: 107057643.4 | T11: 100633533.7 | U11: 112157816 | V11: 111856599.2 | W11: 107049815.9 | X11: 104979199.6 | Y11: 102777206.5 | Z11: 100845351.2 | AA11: 97769368.06 | AB11: 102613202.2 | AC11: 106188299.3 | AD11: 115150771.1
A12: WA022 | C12: =C38 -> 2233774.498 | D12: =D38 -> 2053519.293 | E12: =E38 -> 2020973.579 | F12: 2423417.667 | G12: 2400047.26 | H12: 2130880.767 | I12: 2334350.944 | J12: 2669540.03 | K12: 3555637.569 | L12: 3467317.47 | M12: 2868366.539 | N12: 2676781.723 | O12: 2168200.236 | P12: 2005371.4 | Q12: 1983874.996 | R12: 2401874.359 | S12: 2379198.158 | T12: 2104126.695 | U12: 2349332.432 | V12: 2688180.737 | W12: 3442970.532 | X12: 3474846.923 | Y12: 2875013.524 | Z12: 2676363.35 | AA12: 2183196.932 | AB12: 2020829.379 | AC12: 2023762.702 | AD12: 2438619.512
A13: WA025/025P | C13: =C40+C44 -> 84867685 | D13: =D40+D44 -> 84074970 | E13: =E40+E44 -> 90024038 | F13: 88297285 | G13: 95443061 | H13: 83739469 | I13: 87408384 | J13: 84996016 | K13: 84617796 | L13: 91017408 | M13: 79822758 | N13: 85787474 | O13: 86045432 | P13: 84031959 | Q13: 86651976 | R13: 85922359 | S13: 94769422 | T13: 83521188 | U13: 85812002 | V13: 84557239 | W13: 83813238 | X13: 90098560 | Y13: 79110724 | Z13: 84101558 | AA13: 85999648 | AB13: 83163103 | AC13: 85928262 | AD13: 85530841
A14: WA031 | C14: =C41 -> 5669280.319 | D14: 12685652.34 | E14: =E41 -> 20513636.61 | F14: 23243125.85 | G14: 26681374.85 | H14: 21732769.52 | I14: 10999451.06 | J14: 1476234.987 | K14: 3064442.527 | L14: 3662899.891 | M14: 4056846.033 | N14: 3908471.794 | O14: 5916364.956 | P14: 13081620.33 | Q14: 21216531.3 | R14: 23397790.19 | S14: 26538200.3 | T14: 21310954.7 | U14: 10998961.34 | V14: 1698030.047 | W14: 3018969.84 | X14: 3727782.556 | Y14: 4051859.344 | Z14: 3894478.353 | AA14: 5864287.856 | AB14: 12547469.33 | AC14: 20373921.96 | AD14: 23385688.86
A15: WA032 | C15: 354212.9146 | D15: 816784.4181 | E15: =E42 -> 1230463.701 | F15: 2248621.747 | G15: 1732964.906 | H15: 1161803.683 | I15: 407701.166 | J15: 183512.459 | K15: 260222.7006 | L15: 333129.0354 | M15: 342055.679 | N15: 332411.1064 | O15: 411303.0042 | P15: 726527.5116 | Q15: 1048770.384 | R15: 1750034.888 | S15: 1900188.905 | T15: 1134595.368 | U15: 476190.4889 | V15: 285621.9288 | W15: 344817.5326 | X15: 398628.3343 | Y15: 315243.7789 | Z15: 298845.34 | AA15: 378424.817 | AB15: 761887.1942 | AC15: 1129742.434 | AD15: 1979840.966
A16: WA04X | C16: 1302576.127 | D16: 1305319.058 | E16: =E43 -> 1315164.523 | F16: 1319522.924 | G16: 1343017.049 | H16: 1345900.796 | I16: 1314322.674 | J16: 1330329.701 | K16: 1338864.115 | L16: 1340188.065 | M16: 1272098.586 | N16: 1353925.382 | O16: 1292839.656 | P16: 1297017.579 | Q16: 1313152.508 | R16: 1314340.399 | S16: 1313371.656 | T16: 1318741.236 | U16: 1283836.714 | V16: 1303362.031 | W16: 1306376.54 | X16: 1324673.318 | Y16: 1249320.633 | Z16: 1328407.076 | AA16: 1270504.385 | AB16: 1273798.087 | AC16: 1287598.232 | AD16: 1291310.38
C17: =SUM(C8:C16) -> 428855584.8 | D17: =SUM(D8:D16) -> 418427524.3 | E17: =SUM(E8:E16) -> 434009555 | F17: 491797923.6 | G17: 511223804.1 | H17: 428399582.8 | I17: 443119837.7 | J17: 501147497.6 | K17: 567345034.8 | L17: 573499380.6 | M17: 509171586.1 | N17: 479053941.5 | O17: 427611972.1 | P17: 417117556.8 | Q17: 430508404 | R17: 481360830.8 | S17: 501990325 | T17: 425254723.6 | U17: 441188929.6 | V17: 494172449.7 | W17: 565698336.3 | X17: 573658188.3 | Y17: 510532771.5 | Z17: 481552092.3 | AA17: 430956336.8 | AB17: 419667617.9 | AC17: 431181057.3 | AD17: 481411781.7
A19: WA001 | C19: =C8 -> 181583684.5 | D19: =D8 -> 162022515.3 | E19: 159931912.4 | F19: 198158176.6 | G19: 216731951.2 | H19: 164017440.8 | I19: 174053253.5 | J19: 236773377.2 | K19: 298266778.9 | L19: 302171651.6 | M19: 255730233.7 | N19: 225395651.4 | O19: 181906626.9 | P19: 163109108.5 | Q19: 160836285.9 | R19: 192846665.1 | S19: =S8 -> 210550430.6 | T19: 163969095.7 | U19: 175095773.3 | V19: 231549337.1 | W19: 299152933.5 | X19: 302328007.5 | Y19: 258494889.7 | Z19: 229713558.7 | AA19: 186545860.4 | AB19: 167672812.4 | AC19: 163238286.1 | AD19: 192721178.3 | AF19: =SUM(B19:K19) -> 1791539091 | AG19: =SUM(B19:R19) -> 3273535314
A20: WA011/12 | C20: =C9+C10 -> 50808435.73 | D20: =D9+D10 -> 49109075.81 | E20: 49953954.8 | F20: 57741452.32 | G20: 57339320.13 | H20: 51272987.22 | I20: 52608254.54 | J20: 59878691.45 | K20: 67435321.27 | L20: 66133910.67 | M20: 60885910.69 | N20: 57688794.16 | O20: 50347560.91 | P20: 48824704.07 | Q20: 50227686.13 | R20: 57931610.44 | S20: =S9+S10 -> 57481870.09 | T20: 51262488.16 | U20: 53015017.32 | V20: 60234079.67 | W20: 67569214.43 | X20: 67326490.03 | Y20: 61658514.09 | Z20: 58693530.29 | AA20: 50945046.3 | AB20: 49614516.31 | AC20: 51011184.54 | AD20: 58913531.6 | AF20: 496147493.3 | AG20: 888187670.3
A21: WA021/22 | C21: =C11+C12 -> 104269710.2 | D21: =D11+D12 -> 108413207.4 | E21: 111040385 | F21: 120789739.2 | G21: 111952114.9 | H21: 105129211.8 | I21: 116328470.8 | J21: 116509335.8 | K21: 112361609.3 | L21: 108840193.3 | M21: 107061683.4 | N21: 104587213.6 | O21: 101691844.6 | P21: 106046619.7 | Q21: 109214001.8 | R21: 118198030.8 | S21: =S11+S12 -> 109436841.5 | T21: 102737660.4 | U21: 114507148.5 | V21: 114544780 | W21: 110492786.4 | X21: 108454046.5 | Y21: 105652220 | Z21: 103521714.6 | AA21: 99952564.99 | AB21: 104634031.6 | AC21: 108212062 | AD21: 117589390.6 | AF21: 1006793784 | AG21: 1762433372
A22: WA025 | C22: =C13 -> 84867685 | D22: =D13 -> 84074970 | E22: 90024038 | F22: 88297285 | G22: 95443061 | H22: 83739469 | I22: 87408384 | J22: 84996016 | K22: 84617796 | L22: 91017408 | M22: 79822758 | N22: 85787474 | O22: 86045432 | P22: 84031959 | Q22: 86651976 | R22: 85922359 | S22: =S13 -> 94769422 | T22: 83521188 | U22: 85812002 | V22: 84557239 | W22: 83813238 | X22: 90098560 | Y22: 79110724 | Z22: 84101558 | AA22: 85999648 | AB22: 83163103 | AC22: 85928262 | AD22: 85530841 | AF22: 783468704 | AG22: 1382748070
A23: WA031/32 | C23: =C14+C15 -> 6023493.234 | D23: =D14+D15 -> 13502436.75 | E23: 21744100.31 | F23: 25491747.6 | G23: 28414339.76 | H23: 22894573.2 | I23: 11407152.22 | J23: 1659747.446 | K23: 3324665.228 | L23: 3996028.926 | M23: 4398901.712 | N23: 4240882.9 | O23: 6327667.96 | P23: 13808147.84 | Q23: 22265301.68 | R23: 25147825.08 | S23: =S14+S15 -> 28438389.2 | T23: 22445550.07 | U23: 11475151.83 | V23: 1983651.976 | W23: 3363787.373 | X23: 4126410.89 | Y23: 4367103.123 | Z23: 4193323.693 | AA23: 6242712.673 | AB23: 13309356.53 | AC23: 21503664.39 | AD23: 25365529.82 | AF23: 134462255.7 | AG23: 214647011.9
A24: WA04X | C24: =C16 -> 1302576.127 | D24: =D16 -> 1305319.058 | E24: 1315164.523 | F24: 1319522.924 | G24: 1343017.049 | H24: 1345900.796 | I24: 1314322.674 | J24: 1330329.701 | K24: 1338864.115 | L24: 1340188.065 | M24: 1272098.586 | N24: 1353925.382 | O24: 1292839.656 | P24: 1297017.579 | Q24: 1313152.508 | R24: 1314340.399 | S24: =S16 -> 1313371.656 | T24: 1318741.236 | U24: 1283836.714 | V24: 1303362.031 | W24: 1306376.54 | X24: 1324673.318 | Y24: 1249320.633 | Z24: 1328407.076 | AA24: 1270504.385 | AB24: 1273798.087 | AC24: 1287598.232 | AD24: 1291310.38 | AF24: 11915016.97 | AG24: 21098579.14
A25: Total | C25: =SUM(C19:C24) -> 428855584.8 | D25: =SUM(D19:D24) -> 418427524.3 | E25: =SUM(E19:E24) -> 434009555 | F25: 491797923.6 | G25: 511223804.1 | H25: 428399582.8 | I25: 443119837.7 | J25: 501147497.6 | K25: 567345034.8 | L25: 573499380.6 | M25: 509171586.1 | N25: 479053941.5 | O25: 427611972.1 | P25: 417117556.8 | Q25: 430508404 | R25: 481360830.8 | S25: 501990325 | T25: 425254723.6 | U25: 441188929.6 | V25: 494172449.7 | W25: 565698336.3 | X25: 573658188.3 | Y25: 510532771.5 | Z25: 481552092.3 | AA25: 430956336.8 | AB25: 419667617.9 | AC25: 431181057.3 | AD25: 481411781.7 | AF25: 4224326345 | AG25: 7542650017
C31: =SUM(C32:C44)-C17 -> 0 | D31: =SUM(D32:D44)-D17 -> 0 | E31: =SUM(E32:E44)-E17 -> 0 | F31: 0 | G31: 0 | H31: 0 | I31: 0 | J31: 0 | K31: 0 | L31: 0 | M31: 0 | N31: 0 | O31: 0 | P31: 0 | Q31: 0 | R31: 0 | S31: 0 | T31: 0 | U31: 0 | V31: 0 | W31: 0 | X31: 0 | Y31: 0 | Z31: 0 | AA31: 0 | AB31: 0 | AC31: 0 | AD31: 0
A32: WA_1 | C32: 180715613 | D32: 161321283.9 | E32: 159319735.3 | F32: 197442822.1 | G32: 215964347.4 | H32: 163391526.5 | I32: 173248744.3 | J32: 235502312 | K32: 296641772.8 | L32: 300497880.5 | M32: 254319298.1 | N32: 224138226.7 | O32: 180941546.8 | P32: 162327132.2 | Q32: 160154659.4 | R32: 192076001.8 | S32: 209723942 | T32: 163276388.3 | U32: 174203490 | V32: 230177966.6 | W32: 297354902.1 | X32: 300481615.6 | Y32: 256923101.8 | Z32: 228302756.3 | AA32: 185453542.1 | AB32: 166783498.9 | AC32: 162471694.9 | AD32: 191871355.5
A33: WA_2 | C33: 868071.5269 | D33: 701231.4202 | E33: 612177.0684 | F33: 715354.535 | G33: 767603.8024 | H33: 625914.3111 | I33: 804509.1976 | J33: 1271065.289 | K33: 1625006.072 | L33: 1673771.146 | M33: 1410935.609 | N33: 1257424.675 | O33: 965080.1064 | P33: 781976.352 | Q33: 681626.5355 | R33: 770663.3431 | S33: 826488.6011 | T33: 692707.4036 | U33: 892283.3052 | V33: 1371370.443 | W33: 1798031.411 | X33: 1846391.887 | Y33: 1571787.947 | Z33: 1410802.408 | AA33: 1092318.345 | AB33: 889313.4544 | AC33: 766591.2072 | AD33: 849822.8131
A34: WA_11 | C34: 45729902.62 | D34: 44683753.75 | E34: 45758736.46 | F34: 53109995.1 | G34: 52690979.03 | H34: 47040434.8 | I34: 47650785.26 | J34: 53241542.31 | K34: 58775783.45 | L34: 57488164.67 | M34: 53470920.2 | N34: 50995486.68 | O34: 45299434.45 | P34: 44417998.91 | Q34: 45959655.89 | R34: 53264593.98 | S34: 52790839.26 | T34: 46998351.69 | U34: 48040573.56 | V34: 53426026.13 | W34: 58937974.74 | X34: 58522185.61 | Y34: 54109919.36 | Z34: 51756478.54 | AA34: 45739043.33 | AB34: 45101364.93 | AC34: 46619201.05 | AD34: 54053752.47
A35: WA_12 | C35: 5064376.913 | D35: 4410366.517 | E35: 4180242.205 | F35: 4616435.657 | G35: 4633169.947 | H35: 4217380.843 | I35: 4942219.585 | J35: 6622348.804 | K35: 8644665.055 | L35: 8630798.789 | M35: 7399988.755 | N35: 6678278.239 | O35: 5033094.999 | P35: 4391677.778 | Q35: 4253014.127 | R35: 4652019.032 | S35: 4676062.075 | T35: 4249148.129 | U35: 4959442.948 | V35: 6793046.823 | W35: 8616232.258 | X35: 8789299.5 | Y35: 7533592.742 | Z35: 6922052.568 | AA35: 5191005.691 | AB35: 4498154.113 | AC35: 4376983.045 | AD35: 4844777.349
A36: WA_13 | C36: 14156.19271 | D36: 14955.54746 | E36: 14976.13591 | F36: 15021.56519 | G36: 15171.15252 | H36: 15171.57672 | I36: 15249.69348 | J36: 14800.34078 | K36: 14872.7628 | L36: 14947.20789 | M36: 15001.73172 | N36: 15029.24517 | O36: 15031.46577 | P36: 15027.38003 | Q36: 15016.11374 | R36: 14997.42928 | S36: 14968.76108 | T36: 14988.34386 | U36: 15000.81089 | V36: 15006.72527 | W36: 15007.43413 | X36: 15004.92167 | Y36: 15001.98022 | Z36: 14999.18242 | AA36: 14997.28228 | AB36: 14997.2704 | AC36: 15000.44141 | AD36: 15001.78189
A37: WA_21 | C37: 102004250.2 | D37: 106325839.5 | E37: 108987481.8 | F37: 118334568.4 | G37: 109520059.9 | H37: 102966272.4 | I37: 113962274.1 | J37: 113806680 | K37: 108773700.2 | L37: 105340641.7 | M37: 104161136.8 | N37: 101878153.7 | O37: 99491399.95 | P37: 104009059.3 | Q37: 107197903 | R37: 115763892.1 | S37: 107025347 | T37: 100601208.2 | U37: 112125568.1 | V37: 111824349.6 | W37: 107017564.4 | X37: 104946943.6 | Y37: 102744951.9 | Z37: 100813095 | AA37: 97737105.34 | AB37: 102580936 | AC37: 106156032.7 | AD37: 115118507.3
A38: WA_22 | C38: 2233774.498 | D38: 2053519.293 | E38: 2020973.579 | F38: 2423417.667 | G38: 2400047.26 | H38: 2130880.767 | I38: 2334350.944 | J38: 2669540.03 | K38: 3555637.569 | L38: 3467317.47 | M38: 2868366.539 | N38: 2676781.723 | O38: 2168200.236 | P38: 2005371.4 | Q38: 1983874.996 | R38: 2401874.359 | S38: 2379198.158 | T38: 2104126.695 | U38: 2349332.432 | V38: 2688180.737 | W38: 3442970.532 | X38: 3474846.923 | Y38: 2875013.524 | Z38: 2676363.35 | AA38: 2183196.932 | AB38: 2020829.379 | AC38: 2023762.702 | AD38: 2438619.512
A39: WA_23 | C39: 31685.51072 | D39: 33848.59496 | E39: 31929.59854 | F39: 31753.09523 | G39: 32007.77235 | H39: 32058.63887 | I39: 31845.74431 | J39: 33115.78522 | K39: 32271.52467 | L39: 32234.12456 | M39: 32180.12251 | N39: 32278.21729 | O39: 32244.41141 | P39: 32189.04203 | Q39: 32223.79658 | R39: 32264.31236 | S39: 32296.33783 | T39: 32325.51951 | U39: 32247.95892 | V39: 32249.6262 | W39: 32251.43885 | X39: 32256.00586 | Y39: 32254.57349 | Z39: 32256.21658 | AA39: 32262.71183 | AB39: 32266.25981 | AC39: 32266.66693 | AD39: 32263.76821
A40: WA_25 | C40: 47749334 | D40: 49004982 | E40: 54326500 | F40: 51917113 | G40: 58885543 | H40: 49947496 | I40: 50764195 | J40: 49541955 | K40: 49979591 | L40: 55440542 | M40: 48854215 | N40: 52560911 | O40: 49147173 | P40: 49713670 | Q40: 52029033 | R40: 51512338 | S40: 58011555 | T40: 50365851 | U40: 50452671 | V40: 49586033 | W40: 49714103 | X40: 54926927 | Y40: 49057508 | Z40: 51207377 | AA40: 49361216 | AB40: 49414639 | AC40: 51618075 | AD40: 51429669
A41: WA_31 | C41: 5669280.319 | D41: 12685652.34 | E41: 20513636.61 | F41: 23243125.85 | G41: 26681374.85 | H41: 21732769.52 | I41: 10999451.06 | J41: 1476234.987 | K41: 3064442.527 | L41: 3662899.891 | M41: 4056846.033 | N41: 3908471.794 | O41: 5916364.956 | P41: 13081620.33 | Q41: 21216531.3 | R41: 23397790.19 | S41: 26538200.3 | T41: 21310954.7 | U41: 10998961.34 | V41: 1698030.047 | W41: 3018969.84 | X41: 3727782.556 | Y41: 4051859.344 | Z41: 3894478.353 | AA41: 5864287.856 | AB41: 12547469.33 | AC41: 20373921.96 | AD41: 23385688.86
A42: WA_32 | C42: 354212.9146 | D42: 816784.4181 | E42: 1230463.701 | F42: 2248621.747 | G42: 1732964.906 | H42: 1161803.683 | I42: 407701.166 | J42: 183512.459 | K42: 260222.7006 | L42: 333129.0354 | M42: 342055.679 | N42: 332411.1064 | O42: 411303.0042 | P42: 726527.5116 | Q42: 1048770.384 | R42: 1750034.888 | S42: 1900188.905 | T42: 1134595.368 | U42: 476190.4889 | V42: 285621.9288 | W42: 344817.5326 | X42: 398628.3343 | Y42: 315243.7789 | Z42: 298845.34 | AA42: 378424.817 | AB42: 761887.1942 | AC42: 1129742.434 | AD42: 1979840.966
A43: WA_4X | C43: 1302576.127 | D43: 1305319.058 | E43: 1315164.523 | F43: 1319522.924 | G43: 1343017.049 | H43: 1345900.796 | I43: 1314322.674 | J43: 1330329.701 | K43: 1338864.115 | L43: 1340188.065 | M43: 1272098.586 | N43: 1353925.382 | O43: 1292839.656 | P43: 1297017.579 | Q43: 1313152.508 | R43: 1314340.399 | S43: 1313371.656 | T43: 1318741.236 | U43: 1283836.714 | V43: 1303362.031 | W43: 1306376.54 | X43: 1324673.318 | Y43: 1249320.633 | Z43: 1328407.076 | AA43: 1270504.385 | AB43: 1273798.087 | AC43: 1287598.232 | AD43: 1291310.38
A44: WA_25P | C44: 37118351 | D44: 35069988 | E44: 35697538 | F44: 36380172 | G44: 36557518 | H44: 33791973 | I44: 36644189 | J44: 35454061 | K44: 34638205 | L44: 35576866 | M44: 30968543 | N44: 33226563 | O44: 36898259 | P44: 34318289 | Q44: 34622943 | R44: 34410021 | S44: 36757867 | T44: 33155337 | U44: 35359331 | V44: 34971206 | W44: 34099135 | X44: 35171633 | Y44: 30053216 | Z44: 32894181 | AA44: 36638432 | AB44: 33748464 | AC44: 34310187 | AD44: 34101172

Sheet WA Electric - Sched 91
D4: RESIDENTIAL | E4: GENERAL SVC. | F4: LG. GEN. SVC. | G4: EX LG GEN SVC | H4: PUMPING | I4: ST & AREA LTG
A5: Source | C5: TOTAL | D5: SCHEDULE 1,2 | E5: SCH. 11,12,13 | F5: SCH. 21,22,23 | G5: SCHEDULE 25 | H5: SCH. 30, 31, 32 | I5: SCH. 41-48
A7: Forecast | B7: Total Annual Forecasted kWh's | C7: =SUM(D7:I7) -> 5769559429 | D7: =SUM('Billing Determinants'!$G19:$R19) -> 2571839025 | E7: =SUM('Billing Determinants'!G20:R20) -> 680574751.7 | F7: =SUM('Billing Determinants'!G21:R21) -> 1317920330 | G7: =SUM('Billing Determinants'!G22:R22) -> 1035484092 | H7: =SUM('Billing Determinants'!G23:R23) -> 147885234 | I7: =SUM('Billing Determinants'!G24:R24) -> 15855996.51 | L7: August 2021 - July 2022
B9: Present DSM Rates | D9: 0.002551992116 | E9: 0.003206845127 | F9: 0.002734844645 | G9: 0.001816750562 | H9: 0.002361382541 | I9: 0.01118248874
B11: Present Annual DSM Revenue | C11: =SUM(D11:I11) -> 14757857.52 | D11: =D7*D9 -> 6563312.914 | E11: =E7*E9 -> 2182497.826 | F11: 3604307.357 | G11: 1881216.306 | H11: 349213.6096 | I11: =I7*I9 -> 177309.5024
A13: UE-190334 | B13: Base Revenue | C13: =SUM(D13:I13) -> 530520000 | D13: =ROUND('Base Revenue'!F14*1000,-3) -> 230654000 | E13: =ROUND('Base Revenue'!F16*1000,-3) -> 77192000 | F13: =ROUND('Base Revenue'!F18*1000,-3) -> 132812000 | G13: =ROUND('Base Revenue'!F20*1000,-3) -> 70533000 | H13: =ROUND('Base Revenue'!F22*1000,-3) -> 12723000 | I13: =ROUND('Base Revenue'!F24*1000,-3) -> 6606000
B15: Percentage of Current Base Volumetric Revenue | C15: =SUM(D15:I15) -> 1 | D15: =D13/$C$13 -> 0.43476966 | E15: =E13/$C$13 -> 0.1455025258 | F15: =F13/$C$13 -> 0.2503430596 | G15: =G13/$C$13 -> 0.1329506899 | H15: 0.02398213074 | I15: =I13/$C$13 -> 0.01245193395
B17: Revenue Requirement | C17: 14509924.57
B19: Revenue Spread Based on Current Allocation | C19: =SUM(D19:I19) -> 14509924.57 | D19: =$C$17*D15 -> 6308474.969 | E19: =$C$17*E15 -> 2111230.674 | F19: =$C$17*F15 -> 3632458.911 | G19: =$C$17*G15 -> 1929104.481 | H19: 347978.908 | I19: =$C$17*I15 -> 180676.6223
B21: DSM Revenue Increase <Decrease> | C21: =C19-C11 -> -247932.9498 | D21: =D19-D11 -> -254837.9445 | E21: =E19-E11 -> -71267.15226 | F21: =F19-F11 -> 28151.55377 | G21: =G19-G11 -> 47888.17499 | H21: =H19-H11 -> -1234.70164 | I21: 3367.119903
B23: Proposed DSM Rates | D23: 0.002551992116 | E23: 0.003206845127 | F23: 0.002734844645 | G23: 0.001816750562 | H23: 0.002361382541 | I23: 0.01118248874
B25: Percentage Increase <Decrease> | C25: =C19/C11-1 -> -0.01680006393 | D25: =D19/D11-1 -> -0.03882763901 | E25: =E19/E11-1 -> -0.03265393963 | F25: =F19/F11-1 -> 0.007810530839 | G25: =G19/G11-1 -> 0.02545596422 | H25: -0.003535663005 | I25: =I19/I11-1 -> 0.01899007023
B27: Present Billed Revenue | C27: =SUM(D27:I27) -> 540240000 | D27: 231769000 | E27: =81602000+1000 -> 81603000 | F27: 139808000 | G27: =43524000+23860000 -> 67384000 | H27: 12812000 | I27: 6864000
B29: Proposed Billed Revenue | C29: =SUM(D29:I29) -> 539992067.1 | D29: =D21+D27 -> 231514162.1 | E29: =E21+E27 -> 81531732.85 | F29: 139836151.6 | G29: =G21+G27 -> 67431888.17 | H29: =H21+H27 -> 12810765.3 | I29: =I21+I27 -> 6867367.12
B31: Overall Billed Percentage Increase <Decrease> | C31: =C29/C27-1 -> -0.0004589311228 | D31: =D29/D27-1 -> -0.001099534211 | E31: =E29/E27-1 -> -0.0008733398559 | F31: =F29/F27-1 -> 0.0002013586759 | G31: =G29/G27-1 -> 0.0007106757537 | H31: -9.637071811e-05 | I31: 0.0004905477714
D33: =D23-D9 -> 0 | E33: 0 | F33: 0 | G33: 0 | H33: 0 | I33: 0
B34: Present DSM Revenue as a Percentage of Billed Revenue | C34: =C11/C27 -> 0.02731722478
B36: Percentage DSM Decrease | C36: =C21/C11 -> -0.01680006393
C38: Present | D38: Proposed | E38: Change
B39: Gross DSM Revenue | C39: =C11 -> 14757857.52 | D39: =C19 -> 14509924.57 | E39: =D39-C39 -> -247932.9498
B40: Revenue Conversion Factor | C40: ='Rev Conv Factor'!E22 -> 0.955631 | D40: ='Rev Conv Factor'!E22 -> 0.955631
B42: Net DSM Revenue | C42: =C39*C40 -> 14103066.14 | D42: =D39*D40 -> 13866133.72 | E42: =D42-C42 -> -236932.4127
C44: Present | D44: Proposed | E44: $ Change | F44: % Change
B45: Average Monthly Bill @ 914 kWh's - Increase <Decrease> | C45: =9+(800*0.08076)+(114*0.094) -> 84.324 | D45: =9+(800*(0.08076+(D23-D9))+(114*(0.094+(ROUND(D23,5)-D9)))) -> 84.3237729 | E45: =D45-C45 -> -0.000227101177 | F45: =E45/C45 -> -2.693197393e-06
C47: Present | D47: Change | E47: Proposed
B48: Basic Charge | C48: 9 | D48: 0 | E48: =C48+D48 -> 9
B49: First 800 kWh's | C49: 0.08076 | D49: =ROUND($D$23,5)-ROUND($D$9,5) -> 0 | E49: =C49+D49 -> 0.08076
B50: 801 - 1500 kWh's | C50: 0.094 | D50: =ROUND($D$23,5)-ROUND($D$9,5) -> 0 | E50: =C50+D50 -> 0.094
B51: Over 1500 kWh's | C51: 0.11026 | D51: =ROUND($D$23,5)-ROUND($D$9,5) -> 0 | E51: 0.11026
C53: =C48+(800*C49)+(114*C50) -> 84.324 | D53: =914*D49 -> 0 | E53: =E48+(800*E49)+(114*E50) -> 84.324
E55: =D53/C53 -> 0

Sheet Rev Conv Factor
A1: AVISTA UTILITIES
A2: Revenue Conversion Factor
A3: Washington - Electric System
A4: TWELVE MONTHS ENDED DECEMBER 31, 2018
A6: Line
A7: No. | C7: Description | E7: Factor
A9: 1 | C9: Revenues | E9: 1
C11: Expense:
A12: 2 | C12: Uncollectibles | E12: 0.003782
A14: 3 | C14: Commission Fees | E14: 0.002
A16: 4 | C16: Washington Excise Tax | E16: 0.038587
A18: 5 | C18: Franchise Fees | E18: 0
A20: 6 | C20: Total Expense | E20: =E12+E14+E16+E18 -> 0.044369
A22: 7 | C22: Net Operating Income Before FIT | E22: =E9-E20 -> 0.955631
A24: 8 | C24: Federal Income Tax @ 21% | E24: 0.200683
A26: 9 | C26: REVENUE CONVERSION FACTOR | E26: =E22-E24 -> 0.754948
A29: Source: UE-190334

Sheet Base Revenue
A1: AVISTA UTILITIES
A2: WASHINGTON ELECTRIC
A3: PROPOSED INCREASE BY SERVICE SCHEDULE
A4: 12 MONTHS ENDED DECEMBER 31, 2018
A5: (000s of Dollars)
A6: Source: UE-190334 Compliance Filing, Attachment 1, Page 1
D8: Base Tariff | F8: Base Tariff | G8: Base | H8: Total Billed | J8: Adjusted Billed | K8: Base | L8: Sch 94 | M8: Sch 93 | N8: Sch 92 | P8: Percent
D9: Revenue | E9: Settlement | F9: Revenue | G9: Tariff | H9: Revenue | I9: Misc | J9: Revenue | K9: Rate | L9: Remand | M9: ERM | N9: LIRAP | O9: Total | P9: Increase
B10: Type of | C10: Schedule | D10: Under Present | E10: General | F10: Under Proposed | G10: Percent | H10: at Present | I10: Rate Adjustment | J10: at Present | K10: General | L10: Rate | M10: Rate | N10: Rate | O10: Net | P10: on Billed
A11: No. | B11: Service | C11: Number | D11: Rates(1) | E11: Increase | F11: Rates(1) | G11: Increase | H11: Rates (2) | I11: Change | J11: Rates (2) | K11: Increase | L11: Adjustment | M11: Adjustment | N11: Adjustment | O11: Impact | P11: Revenue
B12: (a) | C12: (b) | D12: (c) | E12: (d) | F12: (e) | G12: (f) | H12: (g) | I12: (h) | J12: (h) | K12: (h) | L12: (i) | M12: (j) | N12: (k) | O12: (l) | P12: (m)
A14: 1 | B14: Residential | C14: 1/2 | D14: 216074.5975 | E14: 14579.2269 | F14: 230654.3244 | G14: 0.06747311841 | H14: 222667.7559 | I14: 0 | J14: 222667.7559 | K14: 14579.2269 | L14: -2117.190553 | M14: -10071.607 | N14: 186.6159624 | O14: 2577.045309 | P14: 0.01157350016
A16: 2 | B16: General Service | C16: 11/12 | D16: 75060.95344 | E16: 2130.678762 | F16: 77191.6322 | G16: 0.02838598051 | H16: 80649.8155 | I16: 0 | J16: 80649.8155 | K16: 2130.678762 | L16: -735.4790586 | M16: -2657.651 | N16: 70.73907858 | O16: -1191.712218 | P16: -0.01477637873
A18: 3 | B18: Large General Service | C18: 21/22 | D18: 125677.2681 | E18: 7134.584918 | F18: 132811.853 | G18: 0.05676909617 | H18: 136457.846 | I18: 0 | J18: 136457.846 | K18: 7134.584918 | L18: -1231.439178 | M18: -5999.64 | N18: 112.4267417 | O18: 15.93248177 | P18: 0.0001167575353
A20: 4 | B20: Extra Large General Service | C20: 25 | D20: 66743.70757 | E20: 3789.048357 | F20: 70532.95592 | G20: 0.05677012104 | H20: 69318.74245 | I20: 0 | J20: 69318.74245 | K20: 3789.048357 | L20: -653.9831558 | M20: -4606.254 | N20: 36.14430513 | O20: -1435.044493 | P20: -0.02070211378
A22: 5 | B22: Pumping Service | C22: 30/31/32 | D22: 12038.75511 | E22: 683.68079 | F22: 12722.6359 | G22: 0.05678999064 | H22: 13072.63417 | I22: 0 | J22: 13072.63417 | K22: 683.68079 | L22: -117.9608288 | M22: -569.254 | N22: 10.42092242 | O22: 6.886883663 | P22: 0.0005268168277
A24: 6 | B24: Street & Area Lights | C24: 41-48 | D24: 6424.01928 | E24: 181.6278803 | F24: 6605.647161 | G24: 0.02827324645 | H24: 6754.240354 | I24: 0 | J24: 6754.240354 | K24: 181.6278803 | L24: -62.94526563 | M24: -98.594 | N24: 6.091969332 | O24: 26.18058403 | P24: 0.003876170028
A26: 7 | B26: Total | D26: 502019.501 | E26: 28499.64761 | F26: 530519.5486 | G26: 0.05677000107 | H26: 528921.0345 | I26: 0 | J26: 528921.0345 | K26: 28499.64761 | L26: -4918.99804 | M26: -24003 | N26: 422.4389796 | O26: 0.08854687441 | P26: 1.674103857e-07
D27: 0
A31: (1) Excludes all present rate adjustments: Schedule 59 (BPA Residential Exchange), Schedule 75 (Decoupling),
A32: Schedule 91 (DSM), Schedule 92 (LIRAP), Schedule 93 (ERM), and Schedule 98 (REC Revenue).
A34: (2) Includes all present rate adjustments: Schedule 59 (BPA Residential Exchange), Schedule 75 (Decoupling),
A35: Schedule 91 (DSM), Schedule 92 (LIRAP), Schedule 93 (ERM), and Schedule 98 (REC Revenue).
B38: reduce billed revenue for BPA ResEx (already accounted for in Schs 1 & 48)
F39: Billing | I39: Billed Revenue
F40: Determinants | H40: Sch 59 Rate | I40: Impact
B41: Schedule 12 only | F41: ='[3]Rev Runs 12MESEPT2014'!P49+'[3]Rev Runs 12MESEPT2014'!P81+'[3]Rev Runs 12MESEPT2014'!P90 -> 57963673 | H41: -0.00027 | I41: =F41*H41 -> -15650.19171
B42: Schedule 22 only | F42: ='[3]Rev Runs 12MESEPT2014'!P51+'[3]Rev Runs 12MESEPT2014'!P83+'[3]Rev Runs 12MESEPT2014'!P92 -> 36956089 | H42: -0.00027 | I42: =F42*H42 -> -9978.14403
B43: Schedule 32 only | F43: ='[3]Rev Runs 12MESEPT2014'!P55+'[3]Rev Runs 12MESEPT2014'!P86+'[3]Rev Runs 12MESEPT2014'!P95 -> 8649684 | H43: -0.00027 | I43: =F43*H43 -> -2335.41468
B45: Total | F45: =SUM(F41:F44) -> 103569446 | I45: =SUM(I41:I44) -> -27963.75042 | J45: Manually deducted in Column H
J48: ERM Reduction Calc | L48: 0 | M48: 1 | N48: =-D14*$L$49 -> 0 | P48: =0/'[3]Pres & Prop Rev'!D23 -> 0
L49: =L48/D26 -> 0 | M49: 11 | N49: =-D16*L49 -> 0
M50: 21 | N50: =-D18*L49 -> 0
M51: 25 | N51: =-D20*L49 -> 0
M52: 31 | N52: =-D22*L49 -> 0
M53: 41-48 | N53: =-D24*L49 -> 0
N54: =SUM(N48:N53) -> 0
